Workbook

Sheet LA Sheets
B2: 2018/19 Midyear Planning Performance Statistics
B3: Quarter 1 (April to June)
B4: Scotland Tables
B5: Published 29th January 2019
B7: SCOTLAND
B8: Aberdeen City
B9: Aberdeenshire
B10: Angus
B11: Argyll and Bute
B12: Cairngorms National Park
B13: Clackmannanshire
B14: Dumfries and Galloway
B15: Dundee City
B16: East Ayrshire
B17: East Dunbartonshire
B18: East Lothian
B19: East Renfrewshire
B20: City of Edinburgh
B21: Falkirk
B22: Fife
B23: Glasgow City
B24: Highland
B25: Inverclyde
B26: Loch Lomond and The Trossachs National Park
B27: Midlothian
B28: Moray
B29: Na h-Eileanan Siar
B30: North Ayrshire
B31: North Lanarkshire
B32: Orkney Islands
B33: Perth and Kinross
B34: Renfrewshire
B35: Scottish Borders
B36: Shetland Islands
B37: South Ayrshire
B38: South Lanarkshire
B39: Stirling
B40: West Dunbartonshire
B41: West Lothian
B43: Notes
B44: Cairngorms Statement
B45: Summary Data
B46: Legacy Cases
B47: Clock Stops by Planning Authority

Sheet NOTES
O1: Return to Contents

Sheet Cairngorms Statement
M1: Return to contents

Sheet Summary Data
A1: Summary Comparisons1 | N1: Return to contents
A3: Local Developments (excluding legacy cases)
B4: Post 3 August 2009 | M4: Return To Contents
B5: Q1 - 2018/19 | E5: Q4 - 2017/18 | G5: Q3 - 2017/18 | I5: Q2 - 2017/18 | K5: Q1 - 2017/18
B6: Applications | C6: Overall Average (Weeks) | D6: Percentage under 2 months | E6: Overall Average (Weeks) | F6: Percentage under 2 months | G6: Overall Average (Weeks) | H6: Percentage under 2 months | I6: Overall Average (Weeks) | J6: Percentage under 2 months | K6: Overall Average (Weeks) | L6: Percentage under 2 months
A7: All Local Developments2 | B7: 6796 | C7: 8.914823846 | D7: 0.7545615068 | E7: 9.32840078 | F7: 0.7255972696 | G7: 9.098541739 | H7: 0.716992665 | I7: 8.973781365 | J7: 0.7427361659 | K7: 8.834526031 | L7: 0.7762308024
A8: Householder | B8: 3455 | C8: 7.212238991 | D8: 0.8593342981 | E8: 7.622048459 | F8: 0.8271516024 | G8: 7.345423383 | H8: 0.829766537 | I8: 7.206294425 | J8: 0.8748921484 | K8: 7.041036454 | L8: 0.9020720976
A9: Housing | B9: 1221 | C9: 12.04364104 | D9: 0.5651105651 | E9: 11.96087516 | F9: 0.5882882883 | G9: 11.70414062 | H9: 0.5425268373 | I9: 12.78391259 | J9: 0.5101708706 | K9: 12.15669716 | L9: 0.5574712644
A10: Business and Industry | B10: 399 | C10: 8.571786609 | D10: 0.7593984962 | E10: 9.467138922 | F10: 0.7024793388 | G10: 10.18305815 | H10: 0.6733668342 | I10: 8.938095238 | J10: 0.7025641026 | K10: 9.540237056 | L10: 0.6986899563
A12: Major Developments (excluding legacy cases)
B13: Post 3 August 2009
B14: Q1 - 2018/19 | D14: Q4 - 2017/18 | F14: Q3 - 2017/18 | H14: Q2 - 2017/18 | J14: Q1 - 2017/18
B15: Applications | C15: Overall Average (Weeks) | D15: Applications | E15: Overall Average (Weeks) | F15: Applications | G15: Overall Average (Weeks) | H15: Applications | I15: Overall Average (Weeks) | J15: Applications | K15: Overall Average (Weeks)
A16: All Major developments2 | B16: 54 | C16: 31.74074074 | D16: 63 | E16: 34.7755102 | F16: 63 | G16: 27.67346939 | H16: 57 | I16: 32.8 | J16: 55 | K16: 39.77662338
A17: Housing | B17: 24 | C17: 34.64285714 | D17: 33 | E17: 38.11255411 | F17: 31 | G17: 33.81105991 | H17: 22 | I17: 36.4025974 | J17: 30 | K17: 44.17619048
A18: Business and Industry | B18: 8 | C18: 24.35714286 | D18: 7 | E18: 21.51020408 | F18: 6 | G18: 33.97619048 | H18: 0 | I18: 0 | J18: 4 | K18: 19.85714286
A21: Legal Agreements Comparison3
B22: Post 3 August 2009
B23: Q1 - 2018/19 | E23: Q4 - 2017/18 | H23: Q3 - 2017/18 | K23: Q2 - 2017/18 | N23: Q1 - 2017/18
B24: Without Legal Agreements (weeks) | C24: With Legal Agreement (weeks) | D24: Overall Average (Weeks) | E24: Without Legal Agreements (weeks) | F24: With Legal Agreement (weeks) | G24: Overall Average (Weeks) | H24: Without Legal Agreements (weeks) | I24: With Legal Agreement (weeks) | J24: Overall Average (Weeks) | K24: Without Legal Agreements (weeks) | L24: With Legal Agreement (weeks) | M24: Overall Average (Weeks) | N24: Without Legal Agreements (weeks) | O24: With Legal Agreement (weeks) | P24: Overall Average (Weeks)
A25: All Local | B25: 8.668557829 | C25: 31.59491194 | D25: 8.914823846 | E25: 8.916502085 | F25: 32.138833 | G25: 9.167039312 | H25: 9.01324536 | I25: 32.39059675 | J25: 9.32840078 | K25: 8.959819363 | L25: 24.34624697 | M25: 9.098541739 | N25: 8.677921694 | O25: 31.70454545 | P25: 8.973781365
A26: All Major | B26: 19.68571429 | C26: 46.80952381 | D26: 31.74074074 | E26: 25.58008658 | F26: 44.16326531 | G26: 34.11007026 | H26: 26.06428571 | I26: 49.92546584 | J26: 34.7755102 | K26: 20.51648352 | L26: 39.30357143 | M26: 27.67346939 | N26: 24.4 | O26: 42.85714286 | P26: 33.01002506
A30: 1. Excludes Other Consents, Local developments with Environmental Impact Assessments, and applications with processing agreements.
A31: 2. Overall averages per quarter will be affected by the volumes of different case-types that happen to be decided on in that quarter.
A32: 3. Excludes legacy cases and applications with legal agreements that also had a processing agreement.

Sheet Legacy Cases
A1: Legacy Cases (pre-3rd August 2009) | G1: 2018/19 Quarter 1 | I1: Return to contents
A3: The following tables show details of applications that were validated pre-3rd August 2009 and so were originally subject to a previous reporting system.
A5: Legacy cases by planning authority - applications with processing agreements | E5: Legacy cases by development type - applications with processing agreements
A6: Local Authority | B6: Number of Legacy Cases | C6: % meeting agreed timescales | E6: Development Type | F6: Number of Legacy Cases | G6: % meeting agreed timescales
A7: East Ayrshire | B7: 1 | C7: 100 | E7: Electricity generation - Local | F7: 1 | G7: 100
A8: Total | B8: =SUM(B7:B7) -> 1 | C8: 100 | E8: Total | F8: =SUM(F7:F7) -> 1 | G8: 100
A10: There were no legacy cases without processing agreements

Sheet Clock Stops
A1: Clock Stops by Planning Authority1,2 | E1: 2018/19 Quarter 1
A3: Planning Authority | B3: Total applications decided in 2018/19 Q1 | C3: Number of applications with clock stopped | D3: Percentage of applications with clock stopped | E3: Average length of time clock stopped (weeks) | F3: Return to contents
A4: Aberdeen City | B4: 263 | C4: 8 | D4: 0.03041825095 | E4: 56.5
A5: Aberdeenshire | B5: 513 | C5: 7 | D5: 0.01364522417 | E5: 4.183673469
A6: Angus | B6: 160 | C6: 0 | D6: 0 | E6: -
A7: Argyll and Bute | B7: 346 | C7: 23 | D7: 0.06647398844 | E7: 16.14285714
A8: Cairngorms National Park | B8: 1 | C8: 0 | D8: 0 | E8: -
A9: Clackmannanshire | B9: 69 | C9: 9 | D9: 0.1304347826 | E9: 4.793650794
A10: Dumfries and Galloway | B10: 346 | C10: 18 | D10: 0.05202312139 | E10: 14.23015873
A11: Dundee City | B11: 175 | C11: 10 | D11: 0.05714285714 | E11: 29.52857143
A12: East Ayrshire | B12: 150 | C12: 22 | D12: 0.1466666667 | E12: 9.753246753
A13: East Dunbartonshire | B13: 191 | C13: 46 | D13: 0.2408376963 | E13: 4.934782609
A14: East Lothian | B14: 271 | C14: 28 | D14: 0.1033210332 | E14: 14.73469388
A15: East Renfrewshire | B15: 191 | C15: 1 | D15: 0.005235602094 | E15: 6
A16: City of Edinburgh | B16: 929 | C16: 0 | D16: 0 | E16: -
A17: Falkirk | B17: 177 | C17: 7 | D17: 0.0395480226 | E17: 9.836734694
A18: Fife | B18: 521 | C18: 7 | D18: 0.01343570058 | E18: 3.408163265
A19: Glasgow City | B19: 558 | C19: 74 | D19: 0.1326164875 | E19: 13.14478764
A20: Highland | B20: 738 | C20: 53 | D20: 0.07181571816 | E20: 22.1967655
A21: Inverclyde | B21: 91 | C21: 7 | D21: 0.07692307692 | E21: 8.530612245
A22: Loch Lomond and The Trossachs National Park | B22: 56 | C22: 6 | D22: 0.1071428571 | E22: 18.76190476
A23: Midlothian | B23: 131 | C23: 14 | D23: 0.106870229 | E23: 16.54081633
A24: Moray | B24: 183 | C24: 48 | D24: 0.262295082 | E24: 7.011904762
A25: Na h-Eileanan Siar | B25: 106 | C25: 1 | D25: 0.009433962264 | E25: 26.28571429
A26: North Ayrshire | B26: 172 | C26: 4 | D26: 0.02325581395 | E26: 4.571428571
A27: North Lanarkshire | B27: 248 | C27: 2 | D27: 0.008064516129 | E27: 65.71428571
A28: Orkney Islands | B28: 100 | C28: 8 | D28: 0.08 | E28: 3.785714286
A29: Perth and Kinross | B29: 425 | C29: 28 | D29: 0.06588235294 | E29: 12.62755102
A30: Renfrewshire | B30: 236 | C30: 25 | D30: 0.1059322034 | E30: 6.765714286
A31: Scottish Borders | B31: 211 | C31: 0 | D31: 0 | E31: -
A32: Shetland Islands | B32: 68 | C32: 5 | D32: 0.07352941176 | E32: 4.371428571
A33: South Ayrshire | B33: 229 | C33: 0 | D33: 0 | E33: -
A34: South Lanarkshire | B34: 451 | C34: 5 | D34: 0.0110864745 | E34: 15.2
A35: Stirling | B35: 186 | C35: 0 | D35: 0 | E35: -
A36: West Dunbartonshire | B36: 68 | C36: 17 | D36: 0.25 | E36: 8.848739496
A37: West Lothian | B37: 172 | C37: 7 | D37: 0.04069767442 | E37: 53.16326531
A38: SCOTLAND | B38: 8732 | C38: 490 | D38: 0.05611543747 | E38: 13.54897959
A39: 1. Processing Agreements are not included in this analysis.
C42: 28 | D42: Authorites with clock stops

Sheet Glasgow Note (hidden)

Sheet SCOTLAND
A1: Planning Authority Performance Statistics1,2 | D1: SCOTLAND
D2: 2018/19 Q1
D3: Post-3rd August 2009 | F3: Back to contents
A5: Category | B5: Total Number of Decisions | C5: % Within Agreed Timescales
A6: Processing Agreements | B6: =SUM(B7:B10) -> 674 | C6: =SUMPRODUCT(B7:B10,C7:C10)/B6 -> 0.7195845697
A7: Major Applications | B7: =SUM('[1]Aberdeen City:West Lothian'!B7) -> 26 | C7: =[1]Table1!F41 -> 0.6153846154
A8: Local Applications | B8: =SUM('[1]Aberdeen City:West Lothian'!B8) -> 537 | C8: =[1]Table1!G41 -> 0.7262569832
A9: EIA developments | B9: =SUM('[1]Aberdeen City:West Lothian'!B9) -> 3 | C9: =[1]Table1!H41 -> 0.6666666667
A10: Other Consents | B10: =SUM('[1]Aberdeen City:West Lothian'!B10) -> 108 | C10: =[1]Table1!I41 -> 0.712962963
B12: Total Number of Decisions | C12: Proportion of Decisions | D12: Average Time (Weeks)
A13: All Major Developments | B13: =SUM('[1]Aberdeen City:West Lothian'!B13) -> 54 | D13: =[1]Table2!E40 -> 31.74074074
A14: Without Legal Agreement | B14: =SUM('[1]Aberdeen City:West Lothian'!B14) -> 30 | C14: =B14/B13 -> 0.5555555556 | D14: =[1]Table2!C40 -> 19.68571429
A15: With Legal Agreement | B15: =SUM('[1]Aberdeen City:West Lothian'!B15) -> 24 | C15: =B15/B13 -> 0.4444444444 | D15: =[1]Table2!D40 -> 46.80952381
A17: All Local Developments | B17: =SUM('[1]Aberdeen City:West Lothian'!B17) -> 6796 | D17: =[1]Table3!E40 -> 8.914823846
A18: Without Legal Agreement | B18: =SUM('[1]Aberdeen City:West Lothian'!B18) -> 6723 | C18: =B18/B17 -> 0.9892583873 | D18: =[1]Table3!C40 -> 8.668557829
A19: With Legal Agreement | B19: =SUM('[1]Aberdeen City:West Lothian'!B19) -> 73 | C19: =B19/B17 -> 0.01074161271 | D19: =[1]Table3!D40 -> 31.59491194
A20: Local: less than 2 months | B20: =SUM('[1]Aberdeen City:West Lothian'!B20) -> 5128 | C20: =B20/B17 -> 0.7545615068 | D20: =[1]Table4!D40 -> 6.47074883
A21: Local: more than 2 months | B21: =SUM('[1]Aberdeen City:West Lothian'!B21) -> 1668 | C21: =B21/B17 -> 0.2454384932 | D21: =[1]Table4!E40 -> 16.42874272
A23: All Local developments (non-householder) | B23: =SUM('[1]Aberdeen City:West Lothian'!B23) -> 3341 | D23: =[1]Table5!F40 -> 10.67550348
A24: Local: less than 2 months | B24: =SUM('[1]Aberdeen City:West Lothian'!B24) -> 2159 | C24: =B24/B23 -> 0.6462137085 | D24: =[1]Table5!D40 -> 6.601005757
A25: Local: more than 2 months | B25: =SUM('[1]Aberdeen City:West Lothian'!B25) -> 1182 | C25: =B25/B23 -> 0.3537862915 | D25: =[1]Table5!E40 -> 18.11783901
A27: Householder developments | B27: =SUM('[1]Aberdeen City:West Lothian'!B27) -> 3455 | D27: =[1]Table6!F40 -> 7.212238991
A28: Local: less than 2 months | B28: =SUM('[1]Aberdeen City:West Lothian'!B28) -> 2969 | C28: =B28/B27 -> 0.8593342981 | D28: =[1]Table6!D40 -> 6.376028485
A29: Local: more than 2 months | B29: =SUM('[1]Aberdeen City:West Lothian'!B29) -> 486 | C29: =B29/B27 -> 0.1406657019 | D29: =[1]Table6!E40 -> 12.32069371
A31: Housing Developments - Major | B31: =SUM('[1]Aberdeen City:West Lothian'!B31) -> 24 | D31: =[1]Table7!C40 -> 34.64285714
A33: Housing Developments - Local | B33: =SUM('[1]Aberdeen City:West Lothian'!B33) -> 1221 | D33: =[1]Table8!F40 -> 12.04364104
A34: Local: less than 2 months | B34: =SUM('[1]Aberdeen City:West Lothian'!B34) -> 690 | C34: =B34/B33 -> 0.5651105651 | D34: =[1]Table8!D40 -> 6.788819876
A35: Local: more than 2 months | B35: =SUM('[1]Aberdeen City:West Lothian'!B35) -> 531 | C35: =B35/B33 -> 0.4348894349 | D35: =[1]Table8!E40 -> 18.87193974
A37: Business & Industry - Major | B37: =SUM('[1]Aberdeen City:West Lothian'!B37) -> 8 | D37: =[1]Table9!C40 -> 24.35714286
A39: Business & Industry - Local | B39: =SUM('[1]Aberdeen City:West Lothian'!B39) -> 399 | D39: =[1]Table10!F40 -> 8.571786609
A40: Local: less than 2 months | B40: =SUM('[1]Aberdeen City:West Lothian'!B40) -> 303 | C40: =B40/B39 -> 0.7593984962 | D40: =[1]Table10!D40 -> 6.578029231
A41: Local: more than 2 months | B41: =SUM('[1]Aberdeen City:West Lothian'!B41) -> 96 | C41: =B41/B39 -> 0.2406015038 | D41: =[1]Table10!E40 -> 14.86458333
A43: Other developments - Major | B43: =SUM('[1]Aberdeen City:West Lothian'!B43) -> 17 | D43: =[1]Table11!C40 -> 34.4789916
A45: Other developments - Local | B45: =SUM('[1]Aberdeen City:West Lothian'!B45) -> 1517 | D45: =[1]Table12!F40 -> 9.496468594
A46: Local: less than 2 months | B46: =SUM('[1]Aberdeen City:West Lothian'!B46) -> 1057 | C46: =B46/B45 -> 0.6967699407 | D46: =[1]Table12!D40 -> 6.481551561
A47: Local: more than 2 months | B47: =SUM('[1]Aberdeen City:West Lothian'!B47) -> 460 | C47: =B47/B45 -> 0.3032300593 | D47: =[1]Table12!E40 -> 16.4242236
A49: EIA Developments | B49: =SUM('[1]Aberdeen City:West Lothian'!B49) -> 2 | D49: =[1]Table13!C40 -> 16.92857143
A50: Other Consents | B50: =SUM('[1]Aberdeen City:West Lothian'!B50) -> 1880 | D50: =[1]Table14!C40 -> 7.593920973
A52: Decision Making: Applications subject to
A53: Planning/Legal Agreements | B53: =SUM('[1]Aberdeen City:West Lothian'!B53) -> 98 | D53: ='[1]Table15 '!C40 -> 35.04956268
A54: Local Reviews | B54: =SUM('[1]Aberdeen City:West Lothian'!B54) -> 154 | D54: =[1]Table16!D40 -> 12.42486085
A56: Decision Making: Local Reviews and Appeals
B58: Total number of decisions | C58: Original decision upheld (%)
A59: Local Reviews | B59: =SUM('[1]Aberdeen City:West Lothian'!B59) -> 154 | C59: =[1]Table16!C40 -> 0.6623376623
A60: Appeals to Scottish Ministers3 | B60: =SUM('[1]Aberdeen City:West Lothian'!B60) -> 70 | C60: =[1]Table17!C40 -> 0.6000428571
A62: Enforcement Activity
B64: Number
A65: Cases Taken Up | B65: =[1]Table18!B40 -> 1476
A66: Notices Served | B66: =[1]Table18!C40 -> 181
A67: Reports to Procurator Fiscal | B67: =[1]Table18!D40 -> 1
A68: Prosecutions | B68: =[1]Table18!E40 -> 0
A70: Approved and Delegated
A72: Percentage Approved | B72: =#REF!/#REF! -> 
A73: Percentage Delegated | B73: =#REF!/#REF! -> 
A75: 1. For a full description of the categories in this analysis please see NOTES page.
A76: 2. Time has been removed from the decision time for a total of 413 applications where delays were outwith the control of 28 local authorities. Other local authorities either indicated that they were not able to provide details of dates for delays that were outwith their control or did not require any decision time to be removed from any of their applications. Average decision times for those local authorities who are not able to provide details for delays may be higher than otherwise, and higher than those authorities who are able to report delays in decision making.
A80: 3. Cases where the decision was recalled and made by Ministers are not included in these figures.

Sheet Aberdeen City
A1: Planning Authority Performance Statistics1,3 | D1: Aberdeen City
D2: 2018/19 Q1
D3: All Applications excluding Legacy Cases | F3: Back to contents
A5: Processing Agreements | B5: Total Number of Decisions | C5: % Within Agreed Timescales
A6: TOTAL | B6: 58 | C6: 0.9827586207
A7: Major Applications | B7: 1 | C7: 0
A8: Local Applications | B8: 44 | C8: 1
A9: EIA Applications | B9: 1 | C9: 1
A10: Other Applications | B10: 12 | C10: 1
A11: Applications with processing agreements are not included in the following figures.
B12: Total Number of Decisions | C12: Proportion of Decisions | D12: Average Time (Weeks)
A13: All Major Developments | B13: 3 | D13: 21.52380952
A14: Without Legal Agreement | B14: 1 | C14: 0.3333333333 | D14: 41.42857143
A15: With Legal Agreement | B15: 2 | C15: 0.6666666667 | D15: 11.57142857
A17: All Local Developments | B17: 183 | D17: 6.452771272
A18: Without Legal Agreement | B18: 183 | C18: 1 | D18: 6.452771272
A19: With Legal Agreement | B19: 0 | C19: 0 | D19: -
A20: Local: less than 2 months | B20: 164 | C20: 0.8961748634 | D20: 6.023519164
A21: Local: more than 2 months | B21: 19 | C21: 0.1038251366 | D21: 10.15789474
A23: All Local developments (non-householder) | B23: 70 | D23: 6.448979592
A24: Local: less than 2 months | B24: 62 | C24: 0.8857142857 | D24: 5.677419355
A25: Local: more than 2 months | B25: 8 | C25: 0.1142857143 | D25: 12.42857143
A27: Householder developments | B27: 113 | D27: 6.455120101
A28: Local: less than 2 months | B28: 102 | C28: 0.9026548673 | D28: 6.233893557
A29: Local: more than 2 months | B29: 11 | C29: 0.09734513274 | D29: 8.506493506
A31: Housing Developments - Major | B31: 2 | D31: 24.92857143
A33: Housing Developments - Local | B33: 9 | D33: 6.047619048
A34: Local: less than 2 months | B34: 8 | C34: 0.8888888889 | D34: 5.732142857
A35: Local: more than 2 months | B35: 1 | C35: 0.1111111111 | D35: 8.571428571
A37: Business & Industry - Major | B37: 0 | D37: -
A39: Business & Industry - Local | B39: 14 | D39: 6.551020408
A40: Local: less than 2 months | B40: 13 | C40: 0.9285714286 | D40: 6.395604396
A41: Local: more than 2 months | B41: 1 | C41: 0.07142857143 | D41: 8.571428571
A43: Other developments - Major | B43: 1 | D43: 14.71428571
A45: Other developments - Local | B45: 41 | D45: 6.006968641
A46: Local: less than 2 months | B46: 38 | C46: 0.9268292683 | D46: 5.357142857
A47: Local: more than 2 months | B47: 3 | C47: 0.07317073171 | D47: 14.23809524
A49: EIA Developments | B49: 0 | D49: -
A50: Other Consents | B50: 77 | D50: 6.831168831
A52: Decision Making: Applications subject to
A53: Planning/Legal Agreements | B53: 3 | D53: 9.380952381
A54: Local Reviews | B54: 3 | D54: 5.761904762
A56: Decision Making: Local Reviews and Appeals
B58: Total number of decisions | C58: Original decision upheld (%)
A59: Local Reviews | B59: 3 | C59: 0.6666666667
A60: Appeals to Scottish Ministers2 | B60: 5 | C60: 0.6
A62: Enforcement Activity
B64: Number
A65: Cases Taken Up | B65: 36
A66: Notices Served | B66: 4
A67: Reports to Procurator Fiscal | B67: 0
A68: Prosecutions | B68: 0
A69: Number of breaches resolved | B69: 22
A70: Approved and Delegated
A72: Percentage Approved | B72: 0.9075907591
A73: Percentage Delegated | B73: 0.9470404984
A75: 1. For a full description of the categories in this analysis please see NOTES page.
A76: 2. Cases where the decision was recalled and made by Ministers are not included in these figures.
A77: 3. Time has been removed from the decision time for 8 applications where delays were outwith the control of the local authority.

Sheet Aberdeenshire
A1: Planning Authority Performance Statistics1,3 | D1: Aberdeenshire
D2: 2018/19 Q1
D3: All Applications excluding Legacy Cases
F4: Back to contents
A5: Processing Agreements | B5: Total Number of Decisions | C5: % Within Agreed Timescales
A6: TOTAL | B6: 118 | C6: 0.8898305085
A7: Major Applications | B7: 2 | C7: 1
A8: Local Applications | B8: 111 | C8: 0.8828828829
A9: EIA Applications | B9: 0 | C9: -
A10: Other Applications | B10: 5 | C10: 1
A11: Applications with processing agreements are not included in the following figures.
B12: Total Number of Decisions | C12: Proportion of Decisions | D12: Average Time (Weeks)
A13: All Major Developments | B13: 1 | D13: 9
A14: Without Legal Agreement | B14: 1 | C14: 1 | D14: 9
A15: With Legal Agreement | B15: 0 | C15: 0 | D15: -
A17: All Local Developments | B17: 459 | D17: 9.517896047
A18: Without Legal Agreement | B18: 436 | C18: 0.9498910675 | D18: 8.701507208
A19: With Legal Agreement | B19: 23 | C19: 0.05010893246 | D19: 24.99378882
A20: Local: less than 2 months | B20: 379 | C20: 0.825708061 | D20: 7.247644176
A21: Local: more than 2 months | B21: 80 | C21: 0.174291939 | D21: 20.27321429
A23: All Local developments (non-householder) | B23: 261 | D23: 11.32293377
A24: Local: less than 2 months | B24: 187 | C24: 0.7164750958 | D24: 7.51566081
A25: Local: more than 2 months | B25: 74 | C25: 0.2835249042 | D25: 20.94401544
A27: Householder developments | B27: 198 | D27: 7.138528139
A28: Local: less than 2 months | B28: 192 | C28: 0.9696969697 | D28: 6.986607143
A29: Local: more than 2 months | B29: 6 | C29: 0.0303030303 | D29: 12
A31: Housing Developments - Major | B31: 0 | D31: -
A33: Housing Developments - Local | B33: 122 | D33: 14.55503513
A34: Local: less than 2 months | B34: 68 | C34: 0.5573770492 | D34: 7.611344538
A35: Local: more than 2 months | B35: 54 | C35: 0.4426229508 | D35: 23.2989418
A37: Business & Industry - Major | B37: 0 | D37: -
A39: Business & Industry - Local | B39: 26 | D39: 7.642857143
A40: Local: less than 2 months | B40: 23 | C40: 0.8846153846 | D40: 7.416149068
A41: Local: more than 2 months | B41: 3 | C41: 0.1153846154 | D41: 9.380952381
A43: Other developments - Major | B43: 1 | D43: 9
A45: Other developments - Local | B45: 91 | D45: 8.310832025
A46: Local: less than 2 months | B46: 76 | C46: 0.8351648352 | D46: 7.357142857
A47: Local: more than 2 months | B47: 15 | C47: 0.1648351648 | D47: 13.14285714
A49: EIA Developments | B49: 0 | D49: -
A50: Other Consents | B50: 53 | D50: 6.76819407
A52: Decision Making: Applications subject to
A53: Planning/Legal Agreements | B53: 23 | D53: 24.99378882
A54: Local Reviews | B54: 8 | D54: 12.35714286
A56: Decision Making: Local Reviews and Appeals
B58: Total number of decisions | C58: Original decision upheld (%)
A59: Local Reviews | B59: 8 | C59: 1
A60: Appeals to Scottish Ministers2 | B60: 9 | C60: 0.667
A62: Enforcement Activity
B64: Number
A65: Cases Taken Up | B65: 114
A66: Notices Served | B66: 5
A67: Reports to Procurator Fiscal | B67: 0
A68: Prosecutions | B68: 0
A69: Number of breaches resolved | B69: 116
A70: Approved and Delegated
A72: Percentage Approved | B72: 0.9286871961
A73: Percentage Delegated | B73: 0.8779714739
A75: 1. For a full description of the categories in this analysis please see NOTES page.
A76: 2. Cases where the decision was recalled and made by Ministers are not included in these figures.
A77: 3. Time has been removed from the decision time for 7 applications where delays were outwith the control of the local authority.

Sheet Angus
A1: Planning Authority Performance Statistics1,3 | D1: Angus
D2: 2018/19 Q1
D3: All Applications excluding Legacy Cases | F3: Back to contents
A5: Processing Agreements | B5: Total Number of Decisions | C5: % Within Agreed Timescales
A6: TOTAL | B6: 47 | C6: 0.6595744681
A7: Major Applications | B7: 0 | C7: -
A8: Local Applications | B8: 40 | C8: 0.65
A9: EIA Applications | B9: 0 | C9: -
A10: Other Applications | B10: 7 | C10: 0.7142857143
A11: Applications with processing agreements are not included in the following figures.
B12: Total Number of Decisions | C12: Proportion of Decisions | D12: Average Time (Weeks)
A13: All Major Developments | B13: 0 | D13: -
A14: Without Legal Agreement | B14: 0 | C14: - | D14: -
A15: With Legal Agreement | B15: 0 | C15: - | D15: -
A17: All Local Developments | B17: 131 | D17: 6.610687023
A18: Without Legal Agreement | B18: 131 | C18: 1 | D18: 6.610687023
A19: With Legal Agreement | B19: 0 | C19: 0 | D19: -
A20: Local: less than 2 months | B20: 112 | C20: 0.8549618321 | D20: 5.945153061
A21: Local: more than 2 months | B21: 19 | C21: 0.1450381679 | D21: 10.53383459
A23: All Local developments (non-householder) | B23: 58 | D23: 8.027093596
A24: Local: less than 2 months | B24: 40 | C24: 0.6896551724 | D24: 6.921428571
A25: Local: more than 2 months | B25: 18 | C25: 0.3103448276 | D25: 10.48412698
A27: Householder developments | B27: 73 | D27: 5.485322896
A28: Local: less than 2 months | B28: 72 | C28: 0.9863013699 | D28: 5.402777778
A29: Local: more than 2 months | B29: 1 | C29: 0.01369863014 | D29: 11.42857143
A31: Housing Developments - Major | B31: 0 | D31: -
A33: Housing Developments - Local | B33: 18 | D33: 7.801587302
A34: Local: less than 2 months | B34: 12 | C34: 0.6666666667 | D34: 6.833333333
A35: Local: more than 2 months | B35: 6 | C35: 0.3333333333 | D35: 9.738095238
A37: Business & Industry - Major | B37: 0 | D37: -
A39: Business & Industry - Local | B39: 16 | D39: 8.705357143
A40: Local: less than 2 months | B40: 10 | C40: 0.625 | D40: 7.4
A41: Local: more than 2 months | B41: 6 | C41: 0.375 | D41: 10.88095238
A43: Other developments - Major | B43: 0 | D43: -
A45: Other developments - Local | B45: 22 | D45: 7.733766234
A46: Local: less than 2 months | B46: 17 | C46: 0.7727272727 | D46: 6.731092437
A47: Local: more than 2 months | B47: 5 | C47: 0.2272727273 | D47: 11.14285714
A49: EIA Developments | B49: 0 | D49: -
A50: Other Consents | B50: 29 | D50: 7.034482759
A52: Decision Making: Applications subject to
A53: Planning/Legal Agreements | B53: 0 | D53: -
A54: Local Reviews | B54: 4 | D54: 13.82142857
A56: Decision Making: Local Reviews and Appeals
B58: Total number of decisions | C58: Original decision upheld (%)
A59: Local Reviews | B59: 4 | C59: 1
A60: Appeals to Scottish Ministers2 | B60: 0
A62: Enforcement Activity
B64: Number
A65: Cases Taken Up | B65: 36
A66: Notices Served | B66: 14
A67: Reports to Procurator Fiscal | B67: 0
A68: Prosecutions | B68: 0
A69: Number of breaches resolved | B69: 24
A70: Approved and Delegated
A72: Percentage Approved | B72: 0.9752475248
A73: Percentage Delegated | B73: 0.9710144928
A75: 1. For a full description of the categories in this analysis please see NOTES page.
A76: 2. Cases where the decision was recalled and made by Ministers are not included in these figures.
A77: 3. Time has not been removed from the decision time for any applications.

Sheet Argyll and Bute
A1: Planning Authority Performance Statistics1,3 | D1: Argyll and Bute
D2: 2018/19 Q1
D3: All Applications excluding Legacy Cases | F3: Back to contents
A5: Processing Agreements | B5: Total Number of Decisions | C5: % Within Agreed Timescales
A6: TOTAL | B6: 0 | C6: -
A7: Major Applications | B7: 0 | C7: -
A8: Local Applications | B8: 0 | C8: -
A9: EIA Applications | B9: 0 | C9: -
A10: Other Applications | B10: 0 | C10: -
A11: Applications with processing agreements are not included in the following figures.
B12: Total Number of Decisions | C12: Proportion of Decisions | D12: Average Time (Weeks)
A13: All Major Developments | B13: 0 | D13: -
A14: Without Legal Agreement | B14: 0 | C14: - | D14: -
A15: With Legal Agreement | B15: 0 | C15: - | D15: -
A17: All Local Developments | B17: 271 | D17: 10.03057459
A18: Without Legal Agreement | B18: 269 | C18: 0.9926199262 | D18: 9.978757302
A19: With Legal Agreement | B19: 2 | C19: 0.007380073801 | D19: 17
A20: Local: less than 2 months | B20: 171 | C20: 0.63099631 | D20: 6.442773601
A21: Local: more than 2 months | B21: 100 | C21: 0.36900369 | D21: 16.16571429
A23: All Local developments (non-householder) | B23: 179 | D23: 11.57142857
A24: Local: less than 2 months | B24: 98 | C24: 0.5474860335 | D24: 6.712827988
A25: Local: more than 2 months | B25: 81 | C25: 0.4525139665 | D25: 17.44973545
A27: Householder developments | B27: 92 | D27: 7.032608696
A28: Local: less than 2 months | B28: 73 | C28: 0.7934782609 | D28: 6.080234834
A29: Local: more than 2 months | B29: 19 | C29: 0.2065217391 | D29: 10.69172932
A31: Housing Developments - Major | B31: 0 | D31: -
A33: Housing Developments - Local | B33: 94 | D33: 11.47416413
A34: Local: less than 2 months | B34: 46 | C34: 0.4893617021 | D34: 6.822981366
A35: Local: more than 2 months | B35: 48 | C35: 0.5106382979 | D35: 15.93154762
A37: Business & Industry - Major | B37: 0 | D37: -
A39: Business & Industry - Local | B39: 8 | D39: 11.85714286
A40: Local: less than 2 months | B40: 5 | C40: 0.625 | D40: 6.371428571
A41: Local: more than 2 months | B41: 3 | C41: 0.375 | D41: 21
A43: Other developments - Major | B43: 0 | D43: -
A45: Other developments - Local | B45: 63 | D45: 10.81179138
A46: Local: less than 2 months | B46: 44 | C46: 0.6984126984 | D46: 6.642857143
A47: Local: more than 2 months | B47: 19 | C47: 0.3015873016 | D47: 20.46616541
A49: EIA Developments | B49: 0 | D49: -
A50: Other Consents | B50: 75 | D50: 6.746666667
A52: Decision Making: Applications subject to
A53: Planning/Legal Agreements | B53: 2 | D53: 17
A54: Local Reviews | B54: 5 | D54: 9.857142857
A56: Decision Making: Local Reviews and Appeals
B58: Total number of decisions | C58: Original decision upheld (%)
A59: Local Reviews | B59: 5 | C59: 0.8
A60: Appeals to Scottish Ministers2 | B60: 1 | C60: 1
A62: Enforcement Activity
B64: Number
A65: Cases Taken Up | B65: 36
A66: Notices Served | B66: 9
A67: Reports to Procurator Fiscal | B67: 0
A68: Prosecutions | B68: 0
A69: Number of breaches resolved | B69: 17
A70: Approved and Delegated
A72: Percentage Approved | B72: 0.9751552795
A73: Percentage Delegated | B73: 0.9710982659
A75: 1. For a full description of the categories in this analysis please see NOTES page.
A76: 2. Cases where the decision was recalled and made by Ministers are not included in these figures.
A77: 3. Time has been removed from the decision time for 14 applications where delays were outwith the control of the local authority.

Sheet Cairngorms National Park
A1: Planning Authority Performance Statistics1,3 | D1: Cairngorms National Park
D2: 2018/19 Q1
D3: All Applications excluding Legacy Cases | F3: Back to contents
A5: Processing Agreements | B5: Total Number of Decisions | C5: % Within Agreed Timescales
A6: TOTAL | B6: 5 | C6: 0.6
A7: Major Applications | B7: 0 | C7: -
A8: Local Applications | B8: 4 | C8: 0.75
A9: EIA Applications | B9: 0 | C9: -
A10: Other Applications | B10: 1 | C10: 0
A11: Applications with processing agreements are not included in the following figures.
B12: Total Number of Decisions | C12: Proportion of Decisions | D12: Average Time (Weeks)
A13: All Major Developments | B13: 0 | D13: -
A14: Without Legal Agreement | B14: 0 | C14: - | D14: -
A15: With Legal Agreement | B15: 0 | C15: - | D15: -
A17: All Local Developments | B17: 1 | D17: 29.28571429
A18: Without Legal Agreement | B18: 1 | C18: 1 | D18: 29.28571429
A19: With Legal Agreement | B19: 0 | C19: 0 | D19: -
A20: Local: less than 2 months | B20: 0 | C20: 0 | D20: -
A21: Local: more than 2 months | B21: 1 | C21: 1 | D21: 29.28571429
A23: All Local developments (non-householder) | B23: 1 | D23: 29.28571429
A24: Local: less than 2 months | B24: 0 | C24: 0 | D24: -
A25: Local: more than 2 months | B25: 1 | C25: 1 | D25: 29.28571429
A27: Householder developments | B27: 0 | D27: -
A28: Local: less than 2 months | B28: 0 | C28: - | D28: -
A29: Local: more than 2 months | B29: 0 | C29: - | D29: -
A31: Housing Developments - Major | B31: 0 | D31: -
A33: Housing Developments - Local | B33: 0 | D33: -
A34: Local: less than 2 months | B34: 0 | C34: - | D34: -
A35: Local: more than 2 months | B35: 0 | C35: - | D35: -
A37: Business & Industry - Major | B37: 0 | D37: -
A39: Business & Industry - Local | B39: 1 | D39: 29.28571429
A40: Local: less than 2 months | B40: 0 | C40: 0 | D40: -
A41: Local: more than 2 months | B41: 1 | C41: 1 | D41: 29.28571429
A43: Other developments - Major | B43: 0 | D43: -
A45: Other developments - Local | B45: 0 | D45: -
A46: Local: less than 2 months | B46: 0 | C46: - | D46: -
A47: Local: more than 2 months | B47: 0 | C47: - | D47: -
A49: EIA Developments | B49: 0 | D49: -
A50: Other Consents | B50: 0 | D50: -
A52: Decision Making: Applications subject to
A53: Planning/Legal Agreements | B53: 0 | D53: -
A54: Local Reviews | B54: 0 | D54: -
A56: Decision Making: Local Reviews and Appeals
B58: Total number of decisions | C58: Original decision upheld (%)
A59: Local Reviews | B59: 0 | C59: -
A60: Appeals to Scottish Ministers2 | B60: 0
A62: Enforcement Activity
B64: Number
A65: Cases Taken Up | B65: 26
A66: Notices Served | B66: 0
A67: Reports to Procurator Fiscal | B67: 0
A68: Prosecutions | B68: 0
A69: Number of breaches resolved | B69: 15
A70: Approved and Delegated
A72: Percentage Approved | B72: 0.6666666667
A73: Percentage Delegated | B73: 0
A75: 1. For a full description of the categories in this analysis please see NOTES page.
A76: 2. Cases where the decision was recalled and made by Ministers are not included in these figures.
A77: 3. Time has not been removed from the decision time for any applications.

Sheet Clackmannanshire
A1: Planning Authority Performance Statistics1,3 | D1: Clackmannanshire
D2: 2018/19 Q1
D3: All Applications excluding Legacy Cases | F3: Back to contents
A5: Processing Agreements | B5: Total Number of Decisions | C5: % Within Agreed Timescales
A6: TOTAL | B6: 0 | C6: -
A7: Major Applications | B7: 0 | C7: -
A8: Local Applications | B8: 0 | C8: -
A9: EIA Applications | B9: 0 | C9: -
A10: Other Applications | B10: 0 | C10: -
A11: Applications with processing agreements are not included in the following figures.
B12: Total Number of Decisions | C12: Proportion of Decisions | D12: Average Time (Weeks)
A13: All Major Developments | B13: 0 | D13: -
A14: Without Legal Agreement | B14: 0 | C14: - | D14: -
A15: With Legal Agreement | B15: 0 | C15: - | D15: -
A17: All Local Developments | B17: 56 | D17: 5.793367347
A18: Without Legal Agreement | B18: 56 | C18: 1 | D18: 5.793367347
A19: With Legal Agreement | B19: 0 | C19: 0 | D19: -
A20: Local: less than 2 months | B20: 54 | C20: 0.9642857143 | D20: 5.052910053
A21: Local: more than 2 months | B21: 2 | C21: 0.03571428571 | D21: 25.78571429
A23: All Local developments (non-householder) | B23: 18 | D23: 7.849206349
A24: Local: less than 2 months | B24: 16 | C24: 0.8888888889 | D24: 5.607142857
A25: Local: more than 2 months | B25: 2 | C25: 0.1111111111 | D25: 25.78571429
A27: Householder developments | B27: 38 | D27: 4.819548872
A28: Local: less than 2 months | B28: 38 | C28: 1 | D28: 4.819548872
A29: Local: more than 2 months | B29: 0 | C29: 0 | D29: -
A31: Housing Developments - Major | B31: 0 | D31: -
A33: Housing Developments - Local | B33: 6 | D33: 7.142857143
A34: Local: less than 2 months | B34: 5 | C34: 0.8333333333 | D34: 5.885714286
A35: Local: more than 2 months | B35: 1 | C35: 0.1666666667 | D35: 13.42857143
A37: Business & Industry - Major | B37: 0 | D37: -
A39: Business & Industry - Local | B39: 7 | D39: 10.24489796
A40: Local: less than 2 months | B40: 6 | C40: 0.8571428571 | D40: 5.595238095
A41: Local: more than 2 months | B41: 1 | C41: 0.1428571429 | D41: 38.14285714
A43: Other developments - Major | B43: 0 | D43: -
A45: Other developments - Local | B45: 5 | D45: 5.342857143
A46: Local: less than 2 months | B46: 5 | C46: 1 | D46: 5.342857143
A47: Local: more than 2 months | B47: 0 | C47: 0 | D47: -
A49: EIA Developments | B49: 0 | D49: -
A50: Other Consents | B50: 13 | D50: 5.043956044
A52: Decision Making: Applications subject to
A53: Planning/Legal Agreements | B53: 0 | D53: -
A54: Local Reviews | B54: 0 | D54: -
A56: Decision Making: Local Reviews and Appeals
B58: Total number of decisions | C58: Original decision upheld (%)
A59: Local Reviews | B59: 0 | C59: -
A60: Appeals to Scottish Ministers2 | B60: 0
A62: Enforcement Activity
B64: Number
A65: Cases Taken Up | B65: 17
A66: Notices Served | B66: 1
A67: Reports to Procurator Fiscal | B67: 0
A68: Prosecutions | B68: 0
A69: Number of breaches resolved | B69: 17
A70: Approved and Delegated
A72: Percentage Approved | B72: 0.9705882353
A73: Percentage Delegated | B73: 0.9420289855
A75: 1. For a full description of the categories in this analysis please see NOTES page.
A76: 2. Cases where the decision was recalled and made by Ministers are not included in these figures.
A77: 3. Time has been removed from the decision time for 9 applications where delays were outwith the control of the local authority.

Sheet Dumfries and Galloway
A1: Planning Authority Performance Statistics1,3 | D1: Dumfries and Galloway
D2: 2018/19 Q1
D3: All Applications excluding Legacy Cases | F3: Back to contents
A5: Processing Agreements | B5: Total Number of Decisions | C5: % Within Agreed Timescales
A6: TOTAL | B6: 8 | C6: 0.625
A7: Major Applications | B7: 1 | C7: 0
A8: Local Applications | B8: 5 | C8: 0.6
A9: EIA Applications | B9: 0 | C9: -
A10: Other Applications | B10: 2 | C10: 1
A11: Applications with processing agreements are not included in the following figures.
B12: Total Number of Decisions | C12: Proportion of Decisions | D12: Average Time (Weeks)
A13: All Major Developments | B13: 3 | D13: 82.23809524
A14: Without Legal Agreement | B14: 0 | C14: 0 | D14: -
A15: With Legal Agreement | B15: 3 | C15: 1 | D15: 82.23809524
A17: All Local Developments | B17: 288 | D17: 9.937996032
A18: Without Legal Agreement | B18: 287 | C18: 0.9965277778 | D18: 9.93927327
A19: With Legal Agreement | B19: 1 | C19: 0.003472222222 | D19: 9.571428571
A20: Local: less than 2 months | B20: 189 | C20: 0.65625 | D20: 5.677248677
A21: Local: more than 2 months | B21: 99 | C21: 0.34375 | D21: 18.07215007
A23: All Local developments (non-householder) | B23: 185 | D23: 12.45173745
A24: Local: less than 2 months | B24: 86 | C24: 0.4648648649 | D24: 5.981727575
A25: Local: more than 2 months | B25: 99 | C25: 0.5351351351 | D25: 18.07215007
A27: Householder developments | B27: 103 | D27: 5.423023578
A28: Local: less than 2 months | B28: 103 | C28: 1 | D28: 5.423023578
A29: Local: more than 2 months | B29: 0 | C29: 0 | D29: -
A31: Housing Developments - Major | B31: 0 | D31: -
A33: Housing Developments - Local | B33: 64 | D33: 14.01785714
A34: Local: less than 2 months | B34: 13 | C34: 0.203125 | D34: 6.659340659
A35: Local: more than 2 months | B35: 51 | C35: 0.796875 | D35: 15.89355742
A37: Business & Industry - Major | B37: 1 | D37: 67.14285714
A39: Business & Industry - Local | B39: 0 | D39: -
A40: Local: less than 2 months | B40: 0 | C40: - | D40: -
A41: Local: more than 2 months | B41: 0 | C41: - | D41: -
A43: Other developments - Major | B43: 2 | D43: 89.78571429
A45: Other developments - Local | B45: 110 | D45: 9.244155844
A46: Local: less than 2 months | B46: 72 | C46: 0.6545454545 | D46: 5.853174603
A47: Local: more than 2 months | B47: 38 | C47: 0.3454545455 | D47: 15.66917293
A49: EIA Developments | B49: 1 | D49: 10.85714286
A50: Other Consents | B50: 54 | D50: 8.666666667
A52: Decision Making: Applications subject to
A53: Planning/Legal Agreements | B53: 4 | D53: 64.07142857
A54: Local Reviews | B54: 1 | D54: 11.57142857
A56: Decision Making: Local Reviews and Appeals
B58: Total number of decisions | C58: Original decision upheld (%)
A59: Local Reviews | B59: 1 | C59: 0
A60: Appeals to Scottish Ministers2 | B60: 0
A62: Enforcement Activity
B64: Number
A65: Cases Taken Up | B65: 36
A66: Notices Served | B66: 1
A67: Reports to Procurator Fiscal | B67: 0
A68: Prosecutions | B68: 0
A69: Number of breaches resolved | B69: 41
A70: Approved and Delegated
A72: Percentage Approved | B72: 0.9458689459
A73: Percentage Delegated | B73: 0.9463276836
A75: 1. For a full description of the categories in this analysis please see NOTES page.
A76: 2. Cases where the decision was recalled and made by Ministers are not included in these figures.
A77: 3. Time has been removed from the decision time for 18 applications where delays were outwith the control of the local authority.

Sheet Dundee
A1: Planning Authority Performance Statistics1,3 | D1: Dundee City
D2: 2018/19 Q1
D3: All Applications excluding Legacy Cases | F3: Back to contents
A5: Processing Agreements | B5: Total Number of Decisions | C5: % Within Agreed Timescales
A6: TOTAL | B6: 0 | C6: -
A7: Major Applications | B7: 0 | C7: -
A8: Local Applications | B8: 0 | C8: -
A9: EIA Applications | B9: 0 | C9: -
A10: Other Applications | B10: 0 | C10: -
A11: Applications with processing agreements are not included in the following figures.
B12: Total Number of Decisions | C12: Proportion of Decisions | D12: Average Time (Weeks)
A13: All Major Developments | B13: 1 | D13: 16.71428571
A14: Without Legal Agreement | B14: 0 | C14: 0 | D14: -
A15: With Legal Agreement | B15: 1 | C15: 1 | D15: 16.71428571
A17: All Local Developments | B17: 122 | D17: 8.661592506
A18: Without Legal Agreement | B18: 119 | C18: 0.9754098361 | D18: 8.695078031
A19: With Legal Agreement | B19: 3 | C19: 0.02459016393 | D19: 7.333333333
A20: Local: less than 2 months | B20: 98 | C20: 0.8032786885 | D20: 7.094752187
A21: Local: more than 2 months | B21: 24 | C21: 0.1967213115 | D21: 15.05952381
A23: All Local developments (non-householder) | B23: 69 | D23: 9.844720497
A24: Local: less than 2 months | B24: 53 | C24: 0.768115942 | D24: 7.336927224
A25: Local: more than 2 months | B25: 16 | C25: 0.231884058 | D25: 18.15178571
A27: Householder developments | B27: 53 | D27: 7.121293801
A28: Local: less than 2 months | B28: 45 | C28: 0.8490566038 | D28: 6.80952381
A29: Local: more than 2 months | B29: 8 | C29: 0.1509433962 | D29: 8.875
A31: Housing Developments - Major | B31: 1 | D31: 16.71428571
A33: Housing Developments - Local | B33: 23 | D33: 10.79503106
A34: Local: less than 2 months | B34: 16 | C34: 0.6956521739 | D34: 7.535714286
A35: Local: more than 2 months | B35: 7 | C35: 0.3043478261 | D35: 18.24489796
A37: Business & Industry - Major | B37: 0 | D37: -
A39: Business & Industry - Local | B39: 2 | D39: 7.571428571
A40: Local: less than 2 months | B40: 2 | C40: 1 | D40: 7.571428571
A41: Local: more than 2 months | B41: 0 | C41: 0 | D41: -
A43: Other developments - Major | B43: 0 | D43: -
A45: Other developments - Local | B45: 43 | D45: 9.435215947
A46: Local: less than 2 months | B46: 35 | C46: 0.8139534884 | D46: 7.232653061
A47: Local: more than 2 months | B47: 8 | C47: 0.1860465116 | D47: 19.07142857
A49: EIA Developments | B49: 0 | D49: -
A50: Other Consents | B50: 52 | D50: 6.967032967
A52: Decision Making: Applications subject to
A53: Planning/Legal Agreements | B53: 4 | D53: 9.678571429
A54: Local Reviews | B54: 0 | D54: -
A56: Decision Making: Local Reviews and Appeals
B58: Total number of decisions | C58: Original decision upheld (%)
A59: Local Reviews | B59: 0 | C59: -
A60: Appeals to Scottish Ministers2 | B60: 0
A62: Enforcement Activity
B64: Number
A65: Cases Taken Up | B65: 36
A66: Notices Served | B66: 0
A67: Reports to Procurator Fiscal | B67: 0
A68: Prosecutions | B68: 0
A69: Number of breaches resolved | B69: 5
A70: Approved and Delegated
A72: Percentage Approved | B72: 0.9171974522
A73: Percentage Delegated | B73: 0.9771428571
A75: 1. For a full description of the categories in this analysis please see NOTES page.
A76: 2. Cases where the decision was recalled and made by Ministers are not included in these figures.
A77: 3. Time has been removed from the decision time for 10 applications where delays were outwith the control of the local authority.

Sheet East Ayrshire
A1: Planning Authority Performance Statistics1,3 | D1: East Ayrshire
D2: 2018/19 Q1
D3: All Applications excluding Legacy Cases | F3: Back to contents
A5: Processing Agreements | B5: Total Number of Decisions | C5: % Within Agreed Timescales
A6: TOTAL | B6: 5 | C6: 0.6
A7: Major Applications | B7: 0 | C7: -
A8: Local Applications | B8: 4 | C8: 0.5
A9: EIA Applications | B9: 1 | C9: 1
A10: Other Applications | B10: 0 | C10: -
A11: Applications with processing agreements are not included in the following figures.
B12: Total Number of Decisions | C12: Proportion of Decisions | D12: Average Time (Weeks)
A13: All Major Developments | B13: 4 | D13: 17.82142857
A14: Without Legal Agreement | B14: 2 | C14: 0.5 | D14: 9.928571429
A15: With Legal Agreement | B15: 2 | C15: 0.5 | D15: 25.71428571
A17: All Local Developments | B17: 126 | D17: 10.04875283
A18: Without Legal Agreement | B18: 126 | C18: 1 | D18: 10.04875283
A19: With Legal Agreement | B19: 0 | C19: 0 | D19: -
A20: Local: less than 2 months | B20: 107 | C20: 0.8492063492 | D20: 7.170894526
A21: Local: more than 2 months | B21: 19 | C21: 0.1507936508 | D21: 26.2556391
A23: All Local developments (non-householder) | B23: 70 | D23: 11.65102041
A24: Local: less than 2 months | B24: 54 | C24: 0.7714285714 | D24: 7.19047619
A25: Local: more than 2 months | B25: 16 | C25: 0.2285714286 | D25: 26.70535714
A27: Householder developments | B27: 56 | D27: 8.045918367
A28: Local: less than 2 months | B28: 53 | C28: 0.9464285714 | D28: 7.150943396
A29: Local: more than 2 months | B29: 3 | C29: 0.05357142857 | D29: 23.85714286
A31: Housing Developments - Major | B31: 2 | D31: 9.928571429
A33: Housing Developments - Local | B33: 31 | D33: 9.986175115
A34: Local: less than 2 months | B34: 21 | C34: 0.6774193548 | D34: 7.156462585
A35: Local: more than 2 months | B35: 10 | C35: 0.3225806452 | D35: 15.92857143
A37: Business & Industry - Major | B37: 0 | D37: -
A39: Business & Industry - Local | B39: 12 | D39: 7.392857143
A40: Local: less than 2 months | B40: 11 | C40: 0.9166666667 | D40: 7.12987013
A41: Local: more than 2 months | B41: 1 | C41: 0.08333333333 | D41: 10.28571429
A43: Other developments - Major | B43: 1 | D43: 21.42857143
A45: Other developments - Local | B45: 24 | D45: 9.06547619
A46: Local: less than 2 months | B46: 20 | C46: 0.8333333333 | D46: 7.257142857
A47: Local: more than 2 months | B47: 4 | C47: 0.1666666667 | D47: 18.10714286
A49: EIA Developments | B49: 0 | D49: -
A50: Other Consents | B50: 20 | D50: 6.264285714
A52: Decision Making: Applications subject to
A53: Planning/Legal Agreements | B53: 2 | D53: 25.71428571
A54: Local Reviews | B54: 2 | D54: 6.285714286
A56: Decision Making: Local Reviews and Appeals
B58: Total number of decisions | C58: Original decision upheld (%)
A59: Local Reviews | B59: 2 | C59: 0
A60: Appeals to Scottish Ministers2 | B60: 2 | C60: 0
A62: Enforcement Activity
B64: Number
A65: Cases Taken Up | B65: 42
A66: Notices Served | B66: 6
A67: Reports to Procurator Fiscal | B67: 0
A68: Prosecutions | B68: 0
A69: Number of breaches resolved | B69: 29
A70: Approved and Delegated
A72: Percentage Approved | B72: 0.9078947368
A73: Percentage Delegated | B73: 0.9166666667
A75: 1. For a full description of the categories in this analysis please see NOTES page.
A76: 2. Cases where the decision was recalled and made by Ministers are not included in these figures.
A77: 3. Time has been removed from the decision time for 24 applications where delays were outwith the control of the local authority.

Sheet East Dunbartonshire
A1: Planning Authority Performance Statistics1,3 | D1: East Dunbartonshire
D2: 2018/19 Q1
D3: All Applications excluding Legacy Cases | F3: Back to contents
A5: Processing Agreements | B5: Total Number of Decisions | C5: % Within Agreed Timescales
A6: TOTAL | B6: 0 | C6: -
A7: Major Applications | B7: 0 | C7: -
A8: Local Applications | B8: 0 | C8: -
A9: EIA Applications | B9: 0 | C9: -
A10: Other Applications | B10: 0 | C10: -
A11: Applications with processing agreements are not included in the following figures.
B12: Total Number of Decisions | C12: Proportion of Decisions | D12: Average Time (Weeks)
A13: All Major Developments | B13: 1 | D13: 34
A14: Without Legal Agreement | B14: 0 | C14: 0 | D14: -
A15: With Legal Agreement | B15: 1 | C15: 1 | D15: 34
A17: All Local Developments | B17: 172 | D17: 10.0166113
A18: Without Legal Agreement | B18: 168 | C18: 0.976744186 | D18: 7.949829932
A19: With Legal Agreement | B19: 4 | C19: 0.02325581395 | D19: 96.82142857
A20: Local: less than 2 months | B20: 145 | C20: 0.8430232558 | D20: 7.413793103
A21: Local: more than 2 months | B21: 27 | C21: 0.1569767442 | D21: 23.99470899
A23: All Local developments (non-householder) | B23: 29 | D23: 21.33497537
A24: Local: less than 2 months | B24: 21 | C24: 0.724137931 | D24: 8.156462585
A25: Local: more than 2 months | B25: 8 | C25: 0.275862069 | D25: 55.92857143
A27: Householder developments | B27: 143 | D27: 7.721278721
A28: Local: less than 2 months | B28: 124 | C28: 0.8671328671 | D28: 7.288018433
A29: Local: more than 2 months | B29: 19 | C29: 0.1328671329 | D29: 10.54887218
A31: Housing Developments - Major | B31: 1 | D31: 34
A33: Housing Developments - Local | B33: 13 | D33: 11.24175824
A34: Local: less than 2 months | B34: 10 | C34: 0.7692307692 | D34: 8.242857143
A35: Local: more than 2 months | B35: 3 | C35: 0.2307692308 | D35: 21.23809524
A37: Business & Industry - Major | B37: 0 | D37: -
A39: Business & Industry - Local | B39: 1 | D39: 8.142857143
A40: Local: less than 2 months | B40: 1 | C40: 1 | D40: 8.142857143
A41: Local: more than 2 months | B41: 0 | C41: 0 | D41: -
A43: Other developments - Major | B43: 0 | D43: -
A45: Other developments - Local | B45: 15 | D45: 30.96190476
A46: Local: less than 2 months | B46: 10 | C46: 0.6666666667 | D46: 8.071428571
A47: Local: more than 2 months | B47: 5 | C47: 0.3333333333 | D47: 76.74285714
A49: EIA Developments | B49: 0 | D49: -
A50: Other Consents | B50: 18 | D50: 5.976190476
A52: Decision Making: Applications subject to
A53: Planning/Legal Agreements | B53: 5 | D53: 84.25714286
A54: Local Reviews | B54: 0 | D54: -
A56: Decision Making: Local Reviews and Appeals
B58: Total number of decisions | C58: Original decision upheld (%)
A59: Local Reviews | B59: 0 | C59: -
A60: Appeals to Scottish Ministers2 | B60: 0
A62: Enforcement Activity
B64: Number
A65: Cases Taken Up | B65: 38
A66: Notices Served | B66: 0
A67: Reports to Procurator Fiscal | B67: 0
A68: Prosecutions | B68: 0
A69: Number of breaches resolved | B69: 53
A70: Approved and Delegated
A72: Percentage Approved | B72: 0.956284153
A73: Percentage Delegated | B73: 0.9633507853
A75: 1. For a full description of the categories in this analysis please see NOTES page.
A76: 2. Cases where the decision was recalled and made by Ministers are not included in these figures.
A77: 3. Time has been removed from the decision time for 46 applications where delays were outwith the control of the local authority.

Sheet East Lothian
A1: Planning Authority Performance Statistics1,3 | D1: East Lothian
D2: 2018/19 Q1
D3: All Applications excluding Legacy Cases | F3: Back to contents
A5: Processing Agreements | B5: Total Number of Decisions | C5: % Within Agreed Timescales
A6: TOTAL | B6: 0 | C6: -
A7: Major Applications | B7: 0 | C7: -
A8: Local Applications | B8: 0 | C8: -
A9: EIA Applications | B9: 0 | C9: -
A10: Other Applications | B10: 0 | C10: -
A11: Applications with processing agreements are not included in the following figures.
B12: Total Number of Decisions | C12: Proportion of Decisions | D12: Average Time (Weeks)
A13: All Major Developments | B13: 3 | D13: 61.61904762
A14: Without Legal Agreement | B14: 1 | C14: 0.3333333333 | D14: 11.14285714
A15: With Legal Agreement | B15: 2 | C15: 0.6666666667 | D15: 86.85714286
A17: All Local Developments | B17: 214 | D17: 9.115487316
A18: Without Legal Agreement | B18: 213 | C18: 0.9953271028 | D18: 9.091884641
A19: With Legal Agreement | B19: 1 | C19: 0.004672897196 | D19: 14.14285714
A20: Local: less than 2 months | B20: 179 | C20: 0.8364485981 | D20: 7.360734238
A21: Local: more than 2 months | B21: 35 | C21: 0.1635514019 | D21: 18.08979592
A23: All Local developments (non-householder) | B23: 77 | D23: 10.9109462
A24: Local: less than 2 months | B24: 52 | C24: 0.6753246753 | D24: 6.851648352
A25: Local: more than 2 months | B25: 25 | C25: 0.3246753247 | D25: 19.35428571
A27: Householder developments | B27: 137 | D27: 8.106360792
A28: Local: less than 2 months | B28: 127 | C28: 0.9270072993 | D28: 7.569178853
A29: Local: more than 2 months | B29: 10 | C29: 0.07299270073 | D29: 14.92857143
A31: Housing Developments - Major | B31: 1 | D31: 44.28571429
A33: Housing Developments - Local | B33: 22 | D33: 15.2012987
A34: Local: less than 2 months | B34: 11 | C34: 0.5 | D34: 7.012987013
A35: Local: more than 2 months | B35: 11 | C35: 0.5 | D35: 23.38961039
A37: Business & Industry - Major | B37: 0 | D37: -
A39: Business & Industry - Local | B39: 8 | D39: 10.03571429
A40: Local: less than 2 months | B40: 7 | C40: 0.875 | D40: 7.346938776
A41: Local: more than 2 months | B41: 1 | C41: 0.125 | D41: 28.85714286
A43: Other developments - Major | B43: 2 | D43: 70.28571429
A45: Other developments - Local | B45: 43 | D45: 9.149501661
A46: Local: less than 2 months | B46: 31 | C46: 0.7209302326 | D46: 6.728110599
A47: Local: more than 2 months | B47: 12 | C47: 0.2790697674 | D47: 15.4047619
A49: EIA Developments | B49: 0 | D49: -
A50: Other Consents | B50: 54 | D50: 8.013227513
A52: Decision Making: Applications subject to
A53: Planning/Legal Agreements | B53: 3 | D53: 62.61904762
A54: Local Reviews | B54: 3 | D54: 7.571428571
A56: Decision Making: Local Reviews and Appeals
B58: Total number of decisions | C58: Original decision upheld (%)
A59: Local Reviews | B59: 3 | C59: 0.6666666667
A60: Appeals to Scottish Ministers2 | B60: 1 | C60: 1
A62: Enforcement Activity
B64: Number
A65: Cases Taken Up | B65: 83
A66: Notices Served | B66: 16
A67: Reports to Procurator Fiscal | B67: 0
A68: Prosecutions | B68: 0
A69: Number of breaches resolved | B69: 40
A70: Approved and Delegated
A72: Percentage Approved | B72: 0.9580152672
A73: Percentage Delegated | B73: 0.9704797048
A75: 1. For a full description of the categories in this analysis please see NOTES page.
A76: 2. Cases where the decision was recalled and made by Ministers are not included in these figures.
A77: 3. Time has been removed from the decision time for 28 applications where delays were outwith the control of the local authority.

Sheet East Renfrewshire
A1: Planning Authority Performance Statistics1,3 | D1: East Renfrewshire
D2: 2018/19 Q1
D3: All Applications excluding Legacy Cases | F3: Back to contents
A5: Processing Agreements | B5: Total Number of Decisions | C5: % Within Agreed Timescales
A6: TOTAL | B6: 1 | C6: 1
A7: Major Applications | B7: 1 | C7: 1
A8: Local Applications | B8: 0 | C8: -
A9: EIA Applications | B9: 0 | C9: -
A10: Other Applications | B10: 0 | C10: -
A11: Applications with processing agreements are not included in the following figures.
B12: Total Number of Decisions | C12: Proportion of Decisions | D12: Average Time (Weeks)
A13: All Major Developments | B13: 0 | D13: -
A14: Without Legal Agreement | B14: 0 | C14: - | D14: -
A15: With Legal Agreement | B15: 0 | C15: - | D15: -
A17: All Local Developments | B17: 183 | D17: 11.50273224
A18: Without Legal Agreement | B18: 182 | C18: 0.9945355191 | D18: 11.48508634
A19: With Legal Agreement | B19: 1 | C19: 0.005464480874 | D19: 14.71428571
A20: Local: less than 2 months | B20: 81 | C20: 0.4426229508 | D20: 6.522045855
A21: Local: more than 2 months | B21: 102 | C21: 0.5573770492 | D21: 15.45798319
A23: All Local developments (non-householder) | B23: 21 | D23: 11.30612245
A24: Local: less than 2 months | B24: 9 | C24: 0.4285714286 | D24: 6.619047619
A25: Local: more than 2 months | B25: 12 | C25: 0.5714285714 | D25: 14.82142857
A27: Householder developments | B27: 162 | D27: 11.52821869
A28: Local: less than 2 months | B28: 72 | C28: 0.4444444444 | D28: 6.509920635
A29: Local: more than 2 months | B29: 90 | C29: 0.5555555556 | D29: 15.54285714
A31: Housing Developments - Major | B31: 0 | D31: -
A33: Housing Developments - Local | B33: 4 | D33: 10.64285714
A34: Local: less than 2 months | B34: 1 | C34: 0.25 | D34: 8
A35: Local: more than 2 months | B35: 3 | C35: 0.75 | D35: 11.52380952
A37: Business & Industry - Major | B37: 0 | D37: -
A39: Business & Industry - Local | B39: 0 | D39: -
A40: Local: less than 2 months | B40: 0 | C40: - | D40: -
A41: Local: more than 2 months | B41: 0 | C41: - | D41: -
A43: Other developments - Major | B43: 0 | D43: -
A45: Other developments - Local | B45: 17 | D45: 11.46218487
A46: Local: less than 2 months | B46: 8 | C46: 0.4705882353 | D46: 6.446428571
A47: Local: more than 2 months | B47: 9 | C47: 0.5294117647 | D47: 15.92063492
A49: EIA Developments | B49: 0 | D49: -
A50: Other Consents | B50: 8 | D50: 9.035714286
A52: Decision Making: Applications subject to
A53: Planning/Legal Agreements | B53: 1 | D53: 14.71428571
A54: Local Reviews | B54: 3 | D54: 13.47619048
A56: Decision Making: Local Reviews and Appeals
B58: Total number of decisions | C58: Original decision upheld (%)
A59: Local Reviews | B59: 3 | C59: 0.6666666667
A60: Appeals to Scottish Ministers2 | B60: 0
A62: Enforcement Activity
B64: Number
A65: Cases Taken Up | B65: 3
A66: Notices Served | B66: 0
A67: Reports to Procurator Fiscal | B67: 0
A68: Prosecutions | B68: 0
A69: Number of breaches resolved | B69: 9
A70: Approved and Delegated
A72: Percentage Approved | B72: 0.9100529101
A73: Percentage Delegated | B73: 0.9947916667
A75: 1. For a full description of the categories in this analysis please see NOTES page.
A76: 2. Cases where the decision was recalled and made by Ministers are not included in these figures.
A77: 3. Time has been removed from the decision time for 1 application where delays were outwith the control of the local authority.

Sheet City of Edinburgh
A1: Planning Authority Performance Statistics1,3 | D1: City of Edinburgh
D2: 2018/19 Q1
D3: All Applications excluding Legacy Cases | F3: Back to contents
A5: Processing Agreements | B5: Total Number of Decisions | C5: % Within Agreed Timescales
A6: TOTAL | B6: 106 | C6: 0.6981132075
A7: Major Applications | B7: 4 | C7: 0.5
A8: Local Applications | B8: 71 | C8: 0.676056338
A9: EIA Applications | B9: 0 | C9: -
A10: Other Applications | B10: 31 | C10: 0.7741935484
A11: Applications with processing agreements are not included in the following figures.
B12: Total Number of Decisions | C12: Proportion of Decisions | D12: Average Time (Weeks)
A13: All Major Developments | B13: 1 | D13: 33.71428571
A14: Without Legal Agreement | B14: 0 | C14: 0 | D14: -
A15: With Legal Agreement | B15: 1 | C15: 1 | D15: 33.71428571
A17: All Local Developments | B17: 554 | D17: 9.975502837
A18: Without Legal Agreement | B18: 546 | C18: 0.9855595668 | D18: 9.366038723
A19: With Legal Agreement | B19: 8 | C19: 0.01444043321 | D19: 51.57142857
A20: Local: less than 2 months | B20: 381 | C20: 0.6877256318 | D20: 6.841019873
A21: Local: more than 2 months | B21: 173 | C21: 0.3122743682 | D21: 16.87861272
A23: All Local developments (non-householder) | B23: 190 | D23: 13.62030075
A24: Local: less than 2 months | B24: 93 | C24: 0.4894736842 | D24: 6.794162826
A25: Local: more than 2 months | B25: 97 | C25: 0.5105263158 | D25: 20.16494845
A27: Householder developments | B27: 364 | D27: 8.07299843
A28: Local: less than 2 months | B28: 288 | C28: 0.7912087912 | D28: 6.856150794
A29: Local: more than 2 months | B29: 76 | C29: 0.2087912088 | D29: 12.68421053
A31: Housing Developments - Major | B31: 0 | D31: -
A33: Housing Developments - Local | B33: 51 | D33: 18.79831933
A34: Local: less than 2 months | B34: 16 | C34: 0.3137254902 | D34: 6.571428571
A35: Local: more than 2 months | B35: 35 | C35: 0.6862745098 | D35: 24.3877551
A37: Business & Industry - Major | B37: 1 | D37: 33.71428571
A39: Business & Industry - Local | B39: 19 | D39: 9.060150376
A40: Local: less than 2 months | B40: 13 | C40: 0.6842105263 | D40: 7.032967033
A41: Local: more than 2 months | B41: 6 | C41: 0.3157894737 | D41: 13.45238095
A43: Other developments - Major | B43: 0 | D43: -
A45: Other developments - Local | B45: 109 | D45: 11.71035387
A46: Local: less than 2 months | B46: 61 | C46: 0.5596330275 | D46: 6.786885246
A47: Local: more than 2 months | B47: 48 | C47: 0.4403669725 | D47: 17.9672619
A49: EIA Developments | B49: 0 | D49: -
A50: Other Consents | B50: 374 | D50: 9.104278075
A52: Decision Making: Applications subject to
A53: Planning/Legal Agreements | B53: 9 | D53: 49.58730159
A54: Local Reviews | B54: 22 | D54: 8.590909091
A56: Decision Making: Local Reviews and Appeals
B58: Total number of decisions | C58: Original decision upheld (%)
A59: Local Reviews | B59: 22 | C59: 0.6818181818
A60: Appeals to Scottish Ministers2 | B60: 20 | C60: 0.6
A62: Enforcement Activity
B64: Number
A65: Cases Taken Up | B65: 156
A66: Notices Served | B66: 34
A67: Reports to Procurator Fiscal | B67: 0
A68: Prosecutions | B68: 0
A69: Number of breaches resolved | B69: 74
A70: Approved and Delegated
A72: Percentage Approved | B72: 0.8660235798
A73: Percentage Delegated | B73: 0.9188405797
A75: 1. For a full description of the categories in this analysis please see NOTES page.
A76: 2. Cases where the decision was recalled and made by Ministers are not included in these figures.
A77: 3. Time has not been removed from the decision time for any applications.

Sheet Falkirk
A1: Planning Authority Performance Statistics1,3 | D1: Falkirk
D2: 2018/19 Q1
D3: All Applications excluding Legacy Cases | F3: Back to contents
A5: Processing Agreements | B5: Total Number of Decisions | C5: % Within Agreed Timescales
A6: TOTAL | B6: 1 | C6: 0
A7: Major Applications | B7: 1 | C7: 0
A8: Local Applications | B8: 0 | C8: -
A9: EIA Applications | B9: 0 | C9: -
A10: Other Applications | B10: 0 | C10: -
A11: Applications with processing agreements are not included in the following figures.
B12: Total Number of Decisions | C12: Proportion of Decisions | D12: Average Time (Weeks)
A13: All Major Developments | B13: 4 | D13: 17.89285714
A14: Without Legal Agreement | B14: 3 | C14: 0.75 | D14: 10.95238095
A15: With Legal Agreement | B15: 1 | C15: 0.25 | D15: 38.71428571
A17: All Local Developments | B17: 147 | D17: 7.475218659
A18: Without Legal Agreement | B18: 147 | C18: 1 | D18: 7.475218659
A19: With Legal Agreement | B19: 0 | C19: 0 | D19: -
A20: Local: less than 2 months | B20: 126 | C20: 0.8571428571 | D20: 6.306122449
A21: Local: more than 2 months | B21: 21 | C21: 0.1428571429 | D21: 14.48979592
A23: All Local developments (non-householder) | B23: 67 | D23: 9.172707889
A24: Local: less than 2 months | B24: 47 | C24: 0.7014925373 | D24: 6.814589666
A25: Local: more than 2 months | B25: 20 | C25: 0.2985074627 | D25: 14.71428571
A27: Householder developments | B27: 80 | D27: 6.053571429
A28: Local: less than 2 months | B28: 79 | C28: 0.9875 | D28: 6.003616637
A29: Local: more than 2 months | B29: 1 | C29: 0.0125 | D29: 10
A31: Housing Developments - Major | B31: 1 | D31: 38.71428571
A33: Housing Developments - Local | B33: 10 | D33: 12.25714286
A34: Local: less than 2 months | B34: 5 | C34: 0.5 | D34: 7.2
A35: Local: more than 2 months | B35: 5 | C35: 0.5 | D35: 17.31428571
A37: Business & Industry - Major | B37: 2 | D37: 8.071428571
A39: Business & Industry - Local | B39: 6 | D39: 7.952380952
A40: Local: less than 2 months | B40: 4 | C40: 0.6666666667 | D40: 7.392857143
A41: Local: more than 2 months | B41: 2 | C41: 0.3333333333 | D41: 9.071428571
A43: Other developments - Major | B43: 1 | D43: 16.71428571
A45: Other developments - Local | B45: 48 | D45: 8.163690476
A46: Local: less than 2 months | B46: 38 | C46: 0.7916666667 | D46: 6.703007519
A47: Local: more than 2 months | B47: 10 | C47: 0.2083333333 | D47: 13.71428571
A49: EIA Developments | B49: 0 | D49: -
A50: Other Consents | B50: 26 | D50: 6.950549451
A52: Decision Making: Applications subject to
A53: Planning/Legal Agreements | B53: 1 | D53: 38.71428571
A54: Local Reviews | B54: 2 | D54: 17.14285714
A56: Decision Making: Local Reviews and Appeals
B58: Total number of decisions | C58: Original decision upheld (%)
A59: Local Reviews | B59: 2 | C59: 1
A60: Appeals to Scottish Ministers2 | B60: 2 | C60: 0.5
A62: Enforcement Activity
B64: Number
A65: Cases Taken Up | B65: 0
A66: Notices Served | B66: 0
A67: Reports to Procurator Fiscal | B67: 0
A68: Prosecutions | B68: 0
A69: Number of breaches resolved | B69: 4
A70: Approved and Delegated
A72: Percentage Approved | B72: 0.9828571429
A73: Percentage Delegated | B73: 0.9550561798
A75: 1. For a full description of the categories in this analysis please see NOTES page.
A76: 2. Cases where the decision was recalled and made by Ministers are not included in these figures.
A77: 3. Time has been removed from the decision time for 7 applications where delays were outwith the control of the local authority.

Sheet Fife
A1: Planning Authority Performance Statistics1,3 | D1: Fife
D2: 2018/19 Q1
D3: All Applications excluding Legacy Cases | F3: Back to contents
A5: Processing Agreements | B5: Total Number of Decisions | C5: % Within Agreed Timescales
A6: TOTAL | B6: 118 | C6: 0.4830508475
A7: Major Applications | B7: 0 | C7: -
A8: Local Applications | B8: 103 | C8: 0.4854368932
A9: EIA Applications | B9: 0 | C9: -
A10: Other Applications | B10: 15 | C10: 0.4666666667
A11: Applications with processing agreements are not included in the following figures.
B12: Total Number of Decisions | C12: Proportion of Decisions | D12: Average Time (Weeks)
A13: All Major Developments | B13: 5 | D13: 31.71428571
A14: Without Legal Agreement | B14: 2 | C14: 0.4 | D14: 27.5
A15: With Legal Agreement | B15: 3 | C15: 0.6 | D15: 34.52380952
A17: All Local Developments | B17: 372 | D17: 10.09178187
A18: Without Legal Agreement | B18: 371 | C18: 0.997311828 | D18: 10.03003466
A19: With Legal Agreement | B19: 1 | C19: 0.002688172043 | D19: 33
A20: Local: less than 2 months | B20: 271 | C20: 0.7284946237 | D20: 6.987348445
A21: Local: more than 2 months | B21: 101 | C21: 0.2715053763 | D21: 18.42149929
A23: All Local developments (non-householder) | B23: 129 | D23: 14.22702104
A24: Local: less than 2 months | B24: 74 | C24: 0.5736434109 | D24: 7.281853282
A25: Local: more than 2 months | B25: 55 | C25: 0.4263565891 | D25: 23.57142857
A27: Householder developments | B27: 243 | D27: 7.896531452
A28: Local: less than 2 months | B28: 197 | C28: 0.8106995885 | D28: 6.876722263
A29: Local: more than 2 months | B29: 46 | C29: 0.1893004115 | D29: 12.26397516
A31: Housing Developments - Major | B31: 4 | D31: 35.35714286
A33: Housing Developments - Local | B33: 21 | D33: 21.63265306
A34: Local: less than 2 months | B34: 5 | C34: 0.2380952381 | D34: 7.428571429
A35: Local: more than 2 months | B35: 16 | C35: 0.7619047619 | D35: 26.07142857
A37: Business & Industry - Major | B37: 0 | D37: -
A39: Business & Industry - Local | B39: 3 | D39: 12.47619048
A40: Local: less than 2 months | B40: 2 | C40: 0.6666666667 | D40: 6.785714286
A41: Local: more than 2 months | B41: 1 | C41: 0.3333333333 | D41: 23.85714286
A43: Other developments - Major | B43: 1 | D43: 17.14285714
A45: Other developments - Local | B45: 102 | D45: 11.6442577
A46: Local: less than 2 months | B46: 67 | C46: 0.6568627451 | D46: 7.285714286
A47: Local: more than 2 months | B47: 35 | C47: 0.3431372549 | D47: 19.9877551
A49: EIA Developments | B49: 0 | D49: -
A50: Other Consents | B50: 144 | D50: 7.48015873
A52: Decision Making: Applications subject to
A53: Planning/Legal Agreements | B53: 4 | D53: 34.14285714
A54: Local Reviews | B54: 3 | D54: 14.47619048
A56: Decision Making: Local Reviews and Appeals
B58: Total number of decisions | C58: Original decision upheld (%)
A59: Local Reviews | B59: 3 | C59: 0.6666666667
A60: Appeals to Scottish Ministers2 | B60: 5 | C60: 0.8
A62: Enforcement Activity
B64: Number
A65: Cases Taken Up | B65: 6
A66: Notices Served | B66: 5
A67: Reports to Procurator Fiscal | B67: 0
A68: Prosecutions | B68: 0
A69: Number of breaches resolved | B69: 66
A70: Approved and Delegated
A72: Percentage Approved | B72: 0.9624573379
A73: Percentage Delegated | B73: 0.9420970266
A75: 1. For a full description of the categories in this analysis please see NOTES page.
A76: 2. Cases where the decision was recalled and made by Ministers are not included in these figures.
A77: 3. Time has been removed from the decision time for 7 applications where delays were outwith the control of the local authority.

Sheet Glasgow City
A1: Planning Authority Performance Statistics1,3 | D1: Glasgow City
D2: 2018/19 Q1
D3: All Applications excluding Legacy Cases | F3: Back to contents
A5: Processing Agreements | B5: Total Number of Decisions | C5: % Within Agreed Timescales
A6: TOTAL | B6: 35 | C6: 0.4285714286
A7: Major Applications | B7: 1 | C7: 1
A8: Local Applications | B8: 21 | C8: 0.4761904762
A9: EIA Applications | B9: 0 | C9: -
A10: Other Applications | B10: 13 | C10: 0.3076923077
A11: Applications with processing agreements are not included in the following figures.
B12: Total Number of Decisions | C12: Proportion of Decisions | D12: Average Time (Weeks)
A13: All Major Developments | B13: 7 | D13: 22.67346939
A14: Without Legal Agreement | B14: 1 | C14: 0.1428571429 | D14: 17.14285714
A15: With Legal Agreement | B15: 6 | C15: 0.8571428571 | D15: 23.5952381
A17: All Local Developments | B17: 358 | D17: 9.210295291
A18: Without Legal Agreement | B18: 347 | C18: 0.969273743 | D18: 8.852614245
A19: With Legal Agreement | B19: 11 | C19: 0.03072625698 | D19: 20.49350649
A20: Local: less than 2 months | B20: 270 | C20: 0.7541899441 | D20: 6.778835979
A21: Local: more than 2 months | B21: 88 | C21: 0.2458100559 | D21: 16.67045455
A23: All Local developments (non-householder) | B23: 196 | D23: 11.15670554
A24: Local: less than 2 months | B24: 115 | C24: 0.5867346939 | D24: 6.845962733
A25: Local: more than 2 months | B25: 81 | C25: 0.4132653061 | D25: 17.27689594
A27: Householder developments | B27: 162 | D27: 6.855379189
A28: Local: less than 2 months | B28: 155 | C28: 0.9567901235 | D28: 6.729032258
A29: Local: more than 2 months | B29: 7 | C29: 0.04320987654 | D29: 9.653061224
A31: Housing Developments - Major | B31: 3 | D31: 24.71428571
A33: Housing Developments - Local | B33: 31 | D33: 12.04608295
A34: Local: less than 2 months | B34: 17 | C34: 0.5483870968 | D34: 6.949579832
A35: Local: more than 2 months | B35: 14 | C35: 0.4516129032 | D35: 18.23469388
A37: Business & Industry - Major | B37: 1 | D37: 32.28571429
A39: Business & Industry - Local | B39: 27 | D39: 10.88888889
A40: Local: less than 2 months | B40: 15 | C40: 0.5555555556 | D40: 7
A41: Local: more than 2 months | B41: 12 | C41: 0.4444444444 | D41: 15.75
A43: Other developments - Major | B43: 3 | D43: 17.42857143
A45: Other developments - Local | B45: 127 | D45: 10.69291339
A46: Local: less than 2 months | B46: 75 | C46: 0.5905511811 | D46: 6.843809524
A47: Local: more than 2 months | B47: 52 | C47: 0.4094488189 | D47: 16.24450549
A49: EIA Developments | B49: 0 | D49: -
A50: Other Consents | B50: 193 | D50: 8.279052554
A52: Decision Making: Applications subject to
A53: Planning/Legal Agreements | B53: 17 | D53: 21.58823529
A54: Local Reviews | B54: 15 | D54: 13.12380952
A56: Decision Making: Local Reviews and Appeals
B58: Total number of decisions | C58: Original decision upheld (%)
A59: Local Reviews | B59: 15 | C59: 0.6
A60: Appeals to Scottish Ministers2 | B60: 3 | C60: 0.667
A62: Enforcement Activity
B64: Number
A65: Cases Taken Up | B65: 187
A66: Notices Served | B66: 14
A67: Reports to Procurator Fiscal | B67: 0
A68: Prosecutions | B68: 0
A69: Number of breaches resolved | B69: 115
A70: Approved and Delegated
A72: Percentage Approved | B72: 0.8993055556
A73: Percentage Delegated | B73: 0.9780775717
A75: 1. For a full description of the categories in this analysis please see NOTES page.
A76: 2. Cases where the decision was recalled and made by Ministers are not included in these figures.
A77: 3. Time has been removed from the decision time for 74 applications where delays were outwith the control of the local authority.

Sheet Highland
A1: Planning Authority Performance Statistics1,3 | D1: Highland
D2: 2018/19 Q1
D3: All Applications excluding Legacy Cases | F3: Back to contents
A5: Processing Agreements | B5: Total Number of Decisions | C5: % Within Agreed Timescales
A6: TOTAL | B6: 8 | C6: 0.75
A7: Major Applications | B7: 4 | C7: 1
A8: Local Applications | B8: 4 | C8: 0.5
A9: EIA Applications | B9: 0 | C9: -
A10: Other Applications | B10: 0 | C10: -
A11: Applications with processing agreements are not included in the following figures.
B12: Total Number of Decisions | C12: Proportion of Decisions | D12: Average Time (Weeks)
A13: All Major Developments | B13: 3 | D13: 17.19047619
A14: Without Legal Agreement | B14: 3 | C14: 1 | D14: 17.19047619
A15: With Legal Agreement | B15: 0 | C15: 0 | D15: -
A17: All Local Developments | B17: 671 | D17: 8.77474984
A18: Without Legal Agreement | B18: 669 | C18: 0.9970193741 | D18: 8.702754644
A19: With Legal Agreement | B19: 2 | C19: 0.002980625931 | D19: 32.85714286
A20: Local: less than 2 months | B20: 504 | C20: 0.7511177347 | D20: 6.33276644
A21: Local: more than 2 months | B21: 167 | C21: 0.2488822653 | D21: 16.14456801
A23: All Local developments (non-householder) | B23: 466 | D23: 9.941753525
A24: Local: less than 2 months | B24: 307 | C24: 0.6587982833 | D24: 6.678920428
A25: Local: more than 2 months | B25: 159 | C25: 0.3412017167 | D25: 16.24168913
A27: Householder developments | B27: 205 | D27: 6.12195122
A28: Local: less than 2 months | B28: 197 | C28: 0.9609756098 | D28: 5.793328499
A29: Local: more than 2 months | B29: 8 | C29: 0.03902439024 | D29: 14.21428571
A31: Housing Developments - Major | B31: 0 | D31: -
A33: Housing Developments - Local | B33: 245 | D33: 10.78542274
A34: Local: less than 2 months | B34: 154 | C34: 0.6285714286 | D34: 6.988868275
A35: Local: more than 2 months | B35: 91 | C35: 0.3714285714 | D35: 17.21036107
A37: Business & Industry - Major | B37: 0 | D37: -
A39: Business & Industry - Local | B39: 55 | D39: 8.997402597
A40: Local: less than 2 months | B40: 37 | C40: 0.6727272727 | D40: 6.749034749
A41: Local: more than 2 months | B41: 18 | C41: 0.3272727273 | D41: 13.61904762
A43: Other developments - Major | B43: 1 | D43: 17.14285714
A45: Other developments - Local | B45: 137 | D45: 8.044838373
A46: Local: less than 2 months | B46: 99 | C46: 0.7226277372 | D46: 6.255411255
A47: Local: more than 2 months | B47: 38 | C47: 0.2773722628 | D47: 12.70676692
A49: EIA Developments | B49: 0 | D49: -
A50: Other Consents | B50: 64 | D50: 7.845982143
A52: Decision Making: Applications subject to
A53: Planning/Legal Agreements | B53: 2 | D53: 32.85714286
A54: Local Reviews | B54: 10 | D54: 6.957142857
A56: Decision Making: Local Reviews and Appeals
B58: Total number of decisions | C58: Original decision upheld (%)
A59: Local Reviews | B59: 10 | C59: 0.6
A60: Appeals to Scottish Ministers2 | B60: 8 | C60: 0.5
A62: Enforcement Activity
B64: Number
A65: Cases Taken Up | B65: 86
A66: Notices Served | B66: 15
A67: Reports to Procurator Fiscal | B67: 0
A68: Prosecutions | B68: 0
A69: Number of breaches resolved | B69: 180
A70: Approved and Delegated
A72: Percentage Approved | B72: 0.9594046008
A73: Percentage Delegated | B73: 0.9571045576
A75: 1. For a full description of the categories in this analysis please see NOTES page.
A76: 2. Cases where the decision was recalled and made by Ministers are not included in these figures.
A77: 3. Time has been removed from the decision time for 53 applications where delays were outwith the control of the local authority.

Sheet Inverclyde
A1: Planning Authority Performance Statistics1,3 | D1: Inverclyde
D2: 2018/19 Q1
D3: All Applications excluding Legacy Cases | F3: Back to contents
A5: Processing Agreements | B5: Total Number of Decisions | C5: % Within Agreed Timescales
A6: TOTAL | B6: 0 | C6: -
A7: Major Applications | B7: 0 | C7: -
A8: Local Applications | B8: 0 | C8: -
A9: EIA Applications | B9: 0 | C9: -
A10: Other Applications | B10: 0 | C10: -
A11: Applications with processing agreements are not included in the following figures.
B12: Total Number of Decisions | C12: Proportion of Decisions | D12: Average Time (Weeks)
A13: All Major Developments | B13: 1 | D13: 15.28571429
A14: Without Legal Agreement | B14: 1 | C14: 1 | D14: 15.28571429
A15: With Legal Agreement | B15: 0 | C15: 0 | D15: -
A17: All Local Developments | B17: 76 | D17: 8.422932331
A18: Without Legal Agreement | B18: 76 | C18: 1 | D18: 8.422932331
A19: With Legal Agreement | B19: 0 | C19: 0 | D19: -
A20: Local: less than 2 months | B20: 63 | C20: 0.8289473684 | D20: 6.775510204
A21: Local: more than 2 months | B21: 13 | C21: 0.1710526316 | D21: 16.40659341
A23: All Local developments (non-householder) | B23: 38 | D23: 9.909774436
A24: Local: less than 2 months | B24: 27 | C24: 0.7105263158 | D24: 6.962962963
A25: Local: more than 2 months | B25: 11 | C25: 0.2894736842 | D25: 17.14285714
A27: Householder developments | B27: 38 | D27: 6.936090226
A28: Local: less than 2 months | B28: 36 | C28: 0.9473684211 | D28: 6.634920635
A29: Local: more than 2 months | B29: 2 | C29: 0.05263157895 | D29: 12.35714286
A31: Housing Developments - Major | B31: 0 | D31: -
A33: Housing Developments - Local | B33: 13 | D33: 15.31868132
A34: Local: less than 2 months | B34: 4 | C34: 0.3076923077 | D34: 7.75
A35: Local: more than 2 months | B35: 9 | C35: 0.6923076923 | D35: 18.68253968
A37: Business & Industry - Major | B37: 0 | D37: -
A39: Business & Industry - Local | B39: 0 | D39: -
A40: Local: less than 2 months | B40: 0 | C40: - | D40: -
A41: Local: more than 2 months | B41: 0 | C41: - | D41: -
A43: Other developments - Major | B43: 1 | D43: 15.28571429
A45: Other developments - Local | B45: 25 | D45: 7.097142857
A46: Local: less than 2 months | B46: 23 | C46: 0.92 | D46: 6.826086957
A47: Local: more than 2 months | B47: 2 | C47: 0.08 | D47: 10.21428571
A49: EIA Developments | B49: 0 | D49: -
A50: Other Consents | B50: 14 | D50: 7.846938776
A52: Decision Making: Applications subject to
A53: Planning/Legal Agreements | B53: 0 | D53: -
A54: Local Reviews | B54: 4 | D54: 13.21428571
A56: Decision Making: Local Reviews and Appeals
B58: Total number of decisions | C58: Original decision upheld (%)
A59: Local Reviews | B59: 4 | C59: 0.5
A60: Appeals to Scottish Ministers2 | B60: 0
A62: Enforcement Activity
B64: Number
A65: Cases Taken Up | B65: 2
A66: Notices Served | B66: 2
A67: Reports to Procurator Fiscal | B67: 0
A68: Prosecutions | B68: 0
A69: Number of breaches resolved | B69: 1
A70: Approved and Delegated
A72: Percentage Approved | B72: 0.9666666667
A73: Percentage Delegated | B73: 0.978021978
A75: 1. For a full description of the categories in this analysis please see NOTES page.
A76: 2. Cases where the decision was recalled and made by Ministers are not included in these figures.
A77: 3. Time has been removed from the decision time for 7 applications where delays were outwith the control of the local authority.

Sheet Loch Lomond
A1: Planning Authority Performance Statistics1,3 | D1: Loch Lomond and The Trossachs
D2: 2018/19 Q1
D3: All Applications excluding Legacy Cases | F3: Back to contents
A5: Processing Agreements | B5: Total Number of Decisions | C5: % Within Agreed Timescales
A6: TOTAL | B6: 0 | C6: -
A7: Major Applications | B7: 0 | C7: -
A8: Local Applications | B8: 0 | C8: -
A9: EIA Applications | B9: 0 | C9: -
A10: Other Applications | B10: 0 | C10: -
A11: Applications with processing agreements are not included in the following figures.
B12: Total Number of Decisions | C12: Proportion of Decisions | D12: Average Time (Weeks)
A13: All Major Developments | B13: 0 | D13: -
A14: Without Legal Agreement | B14: 0 | C14: - | D14: -
A15: With Legal Agreement | B15: 0 | C15: - | D15: -
A17: All Local Developments | B17: 44 | D17: 10.99025974
A18: Without Legal Agreement | B18: 44 | C18: 1 | D18: 10.99025974
A19: With Legal Agreement | B19: 0 | C19: 0 | D19: -
A20: Local: less than 2 months | B20: 25 | C20: 0.5681818182 | D20: 7.377142857
A21: Local: more than 2 months | B21: 19 | C21: 0.4318181818 | D21: 15.7443609
A23: All Local developments (non-householder) | B23: 32 | D23: 12.125
A24: Local: less than 2 months | B24: 15 | C24: 0.46875 | D24: 7.171428571
A25: Local: more than 2 months | B25: 17 | C25: 0.53125 | D25: 16.49579832
A27: Householder developments | B27: 12 | D27: 7.964285714
A28: Local: less than 2 months | B28: 10 | C28: 0.8333333333 | D28: 7.685714286
A29: Local: more than 2 months | B29: 2 | C29: 0.1666666667 | D29: 9.357142857
A31: Housing Developments - Major | B31: 0 | D31: -
A33: Housing Developments - Local | B33: 4 | D33: 22.07142857
A34: Local: less than 2 months | B34: 1 | C34: 0.25 | D34: 4.285714286
A35: Local: more than 2 months | B35: 3 | C35: 0.75 | D35: 28
A37: Business & Industry - Major | B37: 0 | D37: -
A39: Business & Industry - Local | B39: 10 | D39: 8.057142857
A40: Local: less than 2 months | B40: 8 | C40: 0.8 | D40: 7.678571429
A41: Local: more than 2 months | B41: 2 | C41: 0.2 | D41: 9.571428571
A43: Other developments - Major | B43: 0 | D43: -
A45: Other developments - Local | B45: 14 | D45: 11.79591837
A46: Local: less than 2 months | B46: 6 | C46: 0.4285714286 | D46: 6.976190476
A47: Local: more than 2 months | B47: 8 | C47: 0.5714285714 | D47: 15.41071429
A49: EIA Developments | B49: 0 | D49: -
A50: Other Consents | B50: 12 | D50: 5.94047619
A52: Decision Making: Applications subject to
A53: Planning/Legal Agreements | B53: 0 | D53: -
A54: Local Reviews | B54: 1 | D54: 8.857142857
A56: Decision Making: Local Reviews and Appeals
B58: Total number of decisions | C58: Original decision upheld (%)
A59: Local Reviews | B59: 1 | C59: 0
A60: Appeals to Scottish Ministers2 | B60: 0
A62: Enforcement Activity
B64: Number
A65: Cases Taken Up | B65: 19
A66: Notices Served | B66: 0
A67: Reports to Procurator Fiscal | B67: 0
A68: Prosecutions | B68: 0
A69: Number of breaches resolved | B69: 13
A70: Approved and Delegated
A72: Percentage Approved | B72: 0.9607843137
A73: Percentage Delegated | B73: 1
A75: 1. For a full description of the categories in this analysis please see NOTES page.
A76: 2. Cases where the decision was recalled and made by Ministers are not included in these figures.
A77: 3. Time has been removed from the decision time for 6 applications where delays were outwith the control of the local authority.

Sheet Midlothian
A1: Planning Authority Performance Statistics1,3 | D1: Midlothian
D2: 2018/19 Q1
D3: All Applications excluding Legacy Cases | F3: Back to contents
A5: Processing Agreements | B5: Total Number of Decisions | C5: % Within Agreed Timescales
A6: TOTAL | B6: 0 | C6: -
A7: Major Applications | B7: 0 | C7: -
A8: Local Applications | B8: 0 | C8: -
A9: EIA Applications | B9: 0 | C9: -
A10: Other Applications | B10: 0 | C10: -
A11: Applications with processing agreements are not included in the following figures.
B12: Total Number of Decisions | C12: Proportion of Decisions | D12: Average Time (Weeks)
A13: All Major Developments | B13: 1 | D13: 79.14285714
A14: Without Legal Agreement | B14: 1 | C14: 1 | D14: 79.14285714
A15: With Legal Agreement | B15: 0 | C15: 0 | D15: -
A17: All Local Developments | B17: 109 | D17: 10.54521625
A18: Without Legal Agreement | B18: 106 | C18: 0.9724770642 | D18: 9.234501348
A19: With Legal Agreement | B19: 3 | C19: 0.02752293578 | D19: 56.85714286
A20: Local: less than 2 months | B20: 86 | C20: 0.7889908257 | D20: 6.290697674
A21: Local: more than 2 months | B21: 23 | C21: 0.2110091743 | D21: 26.45341615
A23: All Local developments (non-householder) | B23: 50 | D23: 15.77142857
A24: Local: less than 2 months | B24: 28 | C24: 0.56 | D24: 7.081632653
A25: Local: more than 2 months | B25: 22 | C25: 0.44 | D25: 26.83116883
A27: Householder developments | B27: 59 | D27: 6.11622276
A28: Local: less than 2 months | B28: 58 | C28: 0.9830508475 | D28: 5.908866995
A29: Local: more than 2 months | B29: 1 | C29: 0.01694915254 | D29: 18.14285714
A31: Housing Developments - Major | B31: 1 | D31: 79.14285714
A33: Housing Developments - Local | B33: 19 | D33: 18.36090226
A34: Local: less than 2 months | B34: 10 | C34: 0.5263157895 | D34: 7.7
A35: Local: more than 2 months | B35: 9 | C35: 0.4736842105 | D35: 30.20634921
A37: Business & Industry - Major | B37: 0 | D37: -
A39: Business & Industry - Local | B39: 2 | D39: 5.642857143
A40: Local: less than 2 months | B40: 2 | C40: 1 | D40: 5.642857143
A41: Local: more than 2 months | B41: 0 | C41: 0 | D41: -
A43: Other developments - Major | B43: 0 | D43: -
A45: Other developments - Local | B45: 29 | D45: 14.77339901
A46: Local: less than 2 months | B46: 16 | C46: 0.5517241379 | D46: 6.875
A47: Local: more than 2 months | B47: 13 | C47: 0.4482758621 | D47: 24.49450549
A49: EIA Developments | B49: 1 | D49: 23
A50: Other Consents | B50: 20 | D50: 11.27857143
A52: Decision Making: Applications subject to
A53: Planning/Legal Agreements | B53: 3 | D53: 56.85714286
A54: Local Reviews | B54: 12 | D54: 19.88095238
A56: Decision Making: Local Reviews and Appeals
B58: Total number of decisions | C58: Original decision upheld (%)
A59: Local Reviews | B59: 12 | C59: 0.4166666667
A60: Appeals to Scottish Ministers2 | B60: 1 | C60: 0
A62: Enforcement Activity
B64: Number
A65: Cases Taken Up | B65: 37
A66: Notices Served | B66: 7
A67: Reports to Procurator Fiscal | B67: 0
A68: Prosecutions | B68: 0
A69: Number of breaches resolved | B69: 38
A70: Approved and Delegated
A72: Percentage Approved | B72: 0.864
A73: Percentage Delegated | B73: 0.9465648855
A75: 1. For a full description of the categories in this analysis please see NOTES page.
A76: 2. Cases where the decision was recalled and made by Ministers are not included in these figures.
A77: 3. Time has been removed from the decision time for 14 applications where delays were outwith the control of the local authority.

Sheet Moray
A1: Planning Authority Performance Statistics1,3 | D1: Moray
D2: 2018/19 Q1
D3: All Applications excluding Legacy Cases | F3: Back to contents
A5: Processing Agreements | B5: Total Number of Decisions | C5: % Within Agreed Timescales
A6: TOTAL | B6: 8 | C6: 0.125
A7: Major Applications | B7: 3 | C7: 0
A8: Local Applications | B8: 4 | C8: 0.25
A9: EIA Applications | B9: 1 | C9: 0
A10: Other Applications | B10: 0 | C10: -
A11: Applications with processing agreements are not included in the following figures.
B12: Total Number of Decisions | C12: Proportion of Decisions | D12: Average Time (Weeks)
A13: All Major Developments | B13: 0 | D13: -
A14: Without Legal Agreement | B14: 0 | C14: - | D14: -
A15: With Legal Agreement | B15: 0 | C15: - | D15: -
A17: All Local Developments | B17: 157 | D17: 6.077343039
A18: Without Legal Agreement | B18: 156 | C18: 0.9936305732 | D18: 6.093406593
A19: With Legal Agreement | B19: 1 | C19: 0.006369426752 | D19: 3.571428571
A20: Local: less than 2 months | B20: 152 | C20: 0.9681528662 | D20: 5.968045113
A21: Local: more than 2 months | B21: 5 | C21: 0.03184713376 | D21: 9.4
A23: All Local developments (non-householder) | B23: 114 | D23: 6.461152882
A24: Local: less than 2 months | B24: 109 | C24: 0.9561403509 | D24: 6.326343381
A25: Local: more than 2 months | B25: 5 | C25: 0.04385964912 | D25: 9.4
A27: Householder developments | B27: 43 | D27: 5.059800664
A28: Local: less than 2 months | B28: 43 | C28: 1 | D28: 5.059800664
A29: Local: more than 2 months | B29: 0 | C29: 0 | D29: -
A31: Housing Developments - Major | B31: 0 | D31: -
A33: Housing Developments - Local | B33: 49 | D33: 6.486880466
A34: Local: less than 2 months | B34: 47 | C34: 0.9591836735 | D34: 6.373860182
A35: Local: more than 2 months | B35: 2 | C35: 0.04081632653 | D35: 9.142857143
A37: Business & Industry - Major | B37: 0 | D37: -
A39: Business & Industry - Local | B39: 42 | D39: 6.445578231
A40: Local: less than 2 months | B40: 40 | C40: 0.9523809524 | D40: 6.328571429
A41: Local: more than 2 months | B41: 2 | C41: 0.04761904762 | D41: 8.785714286
A43: Other developments - Major | B43: 0 | D43: -
A45: Other developments - Local | B45: 12 | D45: 5.857142857
A46: Local: less than 2 months | B46: 12 | C46: 1 | D46: 5.857142857
A47: Local: more than 2 months | B47: 0 | C47: 0 | D47: -
A49: EIA Developments | B49: 0 | D49: -
A50: Other Consents | B50: 26 | D50: 6.225274725
A52: Decision Making: Applications subject to
A53: Planning/Legal Agreements | B53: 1 | D53: 3.571428571
A54: Local Reviews | B54: 5 | D54: 9.114285714
A56: Decision Making: Local Reviews and Appeals
B58: Total number of decisions | C58: Original decision upheld (%)
A59: Local Reviews | B59: 5 | C59: 0.8
A60: Appeals to Scottish Ministers2 | B60: 0
A62: Enforcement Activity
B64: Number
A65: Cases Taken Up | B65: 84
A66: Notices Served | B66: 1
A67: Reports to Procurator Fiscal | B67: 0
A68: Prosecutions | B68: 0
A69: Number of breaches resolved | B69: 93
A70: Approved and Delegated
A72: Percentage Approved | B72: 0.9361702128
A73: Percentage Delegated | B73: 0.9633507853
A75: 1. For a full description of the categories in this analysis please see NOTES page.
A76: 2. Cases where the decision was recalled and made by Ministers are not included in these figures.
A77: 3. Time has been removed from the decision time for 48 applications where delays were outwith the control of the local authority.

Sheet Na h-Eileanan Siar
A1: Planning Authority Performance Statistics1,3 | D1: Na h-Eileanan Siar
D2: 2018/19 Q1
D3: All Applications excluding Legacy Cases | F3: Back to contents
A5: Processing Agreements | B5: Total Number of Decisions | C5: % Within Agreed Timescales
A6: TOTAL | B6: 0 | C6: -
A7: Major Applications | B7: 0 | C7: -
A8: Local Applications | B8: 0 | C8: -
A9: EIA Applications | B9: 0 | C9: -
A10: Other Applications | B10: 0 | C10: -
A11: Applications with processing agreements are not included in the following figures.
B12: Total Number of Decisions | C12: Proportion of Decisions | D12: Average Time (Weeks)
A13: All Major Developments | B13: 0 | D13: -
A14: Without Legal Agreement | B14: 0 | C14: - | D14: -
A15: With Legal Agreement | B15: 0 | C15: - | D15: -
A17: All Local Developments | B17: 82 | D17: 6.834494774
A18: Without Legal Agreement | B18: 82 | C18: 1 | D18: 6.834494774
A19: With Legal Agreement | B19: 0 | C19: 0 | D19: -
A20: Local: less than 2 months | B20: 65 | C20: 0.7926829268 | D20: 5.547252747
A21: Local: more than 2 months | B21: 17 | C21: 0.2073170732 | D21: 11.75630252
A23: All Local developments (non-householder) | B23: 64 | D23: 7.401785714
A24: Local: less than 2 months | B24: 47 | C24: 0.734375 | D24: 5.82674772
A25: Local: more than 2 months | B25: 17 | C25: 0.265625 | D25: 11.75630252
A27: Householder developments | B27: 18 | D27: 4.817460317
A28: Local: less than 2 months | B28: 18 | C28: 1 | D28: 4.817460317
A29: Local: more than 2 months | B29: 0 | C29: 0 | D29: -
A31: Housing Developments - Major | B31: 0 | D31: -
A33: Housing Developments - Local | B33: 31 | D33: 7.064516129
A34: Local: less than 2 months | B34: 22 | C34: 0.7096774194 | D34: 5.792207792
A35: Local: more than 2 months | B35: 9 | C35: 0.2903225806 | D35: 10.17460317
A37: Business & Industry - Major | B37: 0 | D37: -
A39: Business & Industry - Local | B39: 2 | D39: 6.214285714
A40: Local: less than 2 months | B40: 2 | C40: 1 | D40: 6.214285714
A41: Local: more than 2 months | B41: 0 | C41: 0 | D41: -
A43: Other developments - Major | B43: 0 | D43: -
A45: Other developments - Local | B45: 25 | D45: 7.142857143
A46: Local: less than 2 months | B46: 20 | C46: 0.8 | D46: 6.085714286
A47: Local: more than 2 months | B47: 5 | C47: 0.2 | D47: 11.37142857
A49: EIA Developments | B49: 0 | D49: -
A50: Other Consents | B50: 24 | D50: 5.297619048
A52: Decision Making: Applications subject to
A53: Planning/Legal Agreements | B53: 0 | D53: -
A54: Local Reviews | B54: 0 | D54: -
A56: Decision Making: Local Reviews and Appeals
B58: Total number of decisions | C58: Original decision upheld (%)
A59: Local Reviews | B59: 0 | C59: -
A60: Appeals to Scottish Ministers2 | B60: 0
A62: Enforcement Activity
B64: Number
A65: Cases Taken Up | B65: 2
A66: Notices Served | B66: 2
A67: Reports to Procurator Fiscal | B67: 0
A68: Prosecutions | B68: 0
A69: Number of breaches resolved | B69: 0
A70: Approved and Delegated
A72: Percentage Approved | B72: 1
A73: Percentage Delegated | B73: 0.9811320755
A75: 1. For a full description of the categories in this analysis please see NOTES page.
A76: 2. Cases where the decision was recalled and made by Ministers are not included in these figures.
A77: 3. Time has been removed from the decision time for 1 application where delays were outwith the control of the local authority.

Sheet North Ayrshire
A1: Planning Authority Performance Statistics1,3 | D1: North Ayrshire
D2: 2018/19 Q1
D3: All Applications excluding Legacy Cases | F3: Back to contents
A5: Processing Agreements | B5: Total Number of Decisions | C5: % Within Agreed Timescales
A6: TOTAL | B6: 0 | C6: -
A7: Major Applications | B7: 0 | C7: -
A8: Local Applications | B8: 0 | C8: -
A9: EIA Applications | B9: 0 | C9: -
A10: Other Applications | B10: 0 | C10: -
A11: Applications with processing agreements are not included in the following figures.
B12: Total Number of Decisions | C12: Proportion of Decisions | D12: Average Time (Weeks)
A13: All Major Developments | B13: 2 | D13: 4.928571429
A14: Without Legal Agreement | B14: 2 | C14: 1 | D14: 4.928571429
A15: With Legal Agreement | B15: 0 | C15: 0 | D15: -
A17: All Local Developments | B17: 143 | D17: 4.831168831
A18: Without Legal Agreement | B18: 143 | C18: 1 | D18: 4.831168831
A19: With Legal Agreement | B19: 0 | C19: 0 | D19: -
A20: Local: less than 2 months | B20: 139 | C20: 0.972027972 | D20: 4.708119219
A21: Local: more than 2 months | B21: 4 | C21: 0.02797202797 | D21: 9.107142857
A23: All Local developments (non-householder) | B23: 72 | D23: 5.551587302
A24: Local: less than 2 months | B24: 68 | C24: 0.9444444444 | D24: 5.342436975
A25: Local: more than 2 months | B25: 4 | C25: 0.05555555556 | D25: 9.107142857
A27: Householder developments | B27: 71 | D27: 4.100603622
A28: Local: less than 2 months | B28: 71 | C28: 1 | D28: 4.100603622
A29: Local: more than 2 months | B29: 0 | C29: 0 | D29: -
A31: Housing Developments - Major | B31: 2 | D31: 4.928571429
A33: Housing Developments - Local | B33: 26 | D33: 6.137362637
A34: Local: less than 2 months | B34: 25 | C34: 0.9615384615 | D34: 6.034285714
A35: Local: more than 2 months | B35: 1 | C35: 0.03846153846 | D35: 8.714285714
A37: Business & Industry - Major | B37: 0 | D37: -
A39: Business & Industry - Local | B39: 5 | D39: 7.8
A40: Local: less than 2 months | B40: 2 | C40: 0.4 | D40: 5.642857143
A41: Local: more than 2 months | B41: 3 | C41: 0.6 | D41: 9.238095238
A43: Other developments - Major | B43: 0 | D43: -
A45: Other developments - Local | B45: 38 | D45: 4.842105263
A46: Local: less than 2 months | B46: 38 | C46: 1 | D46: 4.842105263
A47: Local: more than 2 months | B47: 0 | C47: 0 | D47: -
A49: EIA Developments | B49: 0 | D49: -
A50: Other Consents | B50: 27 | D50: 3.851851852
A52: Decision Making: Applications subject to
A53: Planning/Legal Agreements | B53: 0 | D53: -
A54: Local Reviews | B54: 2 | D54: 4.428571429
A56: Decision Making: Local Reviews and Appeals
B58: Total number of decisions | C58: Original decision upheld (%)
A59: Local Reviews | B59: 2 | C59: 0.5
A60: Appeals to Scottish Ministers2 | B60: 0
A62: Enforcement Activity
B64: Number
A65: Cases Taken Up | B65: 23
A66: Notices Served | B66: 4
A67: Reports to Procurator Fiscal | B67: 0
A68: Prosecutions | B68: 0
A69: Number of breaches resolved | B69: 46
A70: Approved and Delegated
A72: Percentage Approved | B72: 0.96875
A73: Percentage Delegated | B73: 0.9534883721
A75: 1. For a full description of the categories in this analysis please see NOTES page.
A76: 2. Cases where the decision was recalled and made by Ministers are not included in these figures.
A77: 3. Time has been removed from the decision time for 4 applications where delays were outwith the control of the local authority.

Sheet North Lanarkshire
A1: Planning Authority Performance Statistics1,3 | D1: North Lanarkshire
D2: 2018/19 Q1
D3: All Applications excluding Legacy Cases | F3: Back to contents
A5: Processing Agreements | B5: Total Number of Decisions | C5: % Within Agreed Timescales
A6: TOTAL | B6: 25 | C6: 0.8
A7: Major Applications | B7: 3 | C7: 0.6666666667
A8: Local Applications | B8: 19 | C8: 0.8421052632
A9: EIA Applications | B9: 0 | C9: -
A10: Other Applications | B10: 3 | C10: 0.6666666667
A11: Applications with processing agreements are not included in the following figures.
B12: Total Number of Decisions | C12: Proportion of Decisions | D12: Average Time (Weeks)
A13: All Major Developments | B13: 3 | D13: 8.428571429
A14: Without Legal Agreement | B14: 3 | C14: 1 | D14: 8.428571429
A15: With Legal Agreement | B15: 0 | C15: 0 | D15: -
A17: All Local Developments | B17: 181 | D17: 7.314127861
A18: Without Legal Agreement | B18: 180 | C18: 0.9944751381 | D18: 7.275396825
A19: With Legal Agreement | B19: 1 | C19: 0.005524861878 | D19: 14.28571429
A20: Local: less than 2 months | B20: 158 | C20: 0.8729281768 | D20: 5.945750452
A21: Local: more than 2 months | B21: 23 | C21: 0.1270718232 | D21: 16.71428571
A23: All Local developments (non-householder) | B23: 70 | D23: 9.530612245
A24: Local: less than 2 months | B24: 52 | C24: 0.7428571429 | D24: 6.483516484
A25: Local: more than 2 months | B25: 18 | C25: 0.2571428571 | D25: 18.33333333
A27: Householder developments | B27: 111 | D27: 5.916344916
A28: Local: less than 2 months | B28: 106 | C28: 0.954954955 | D28: 5.681940701
A29: Local: more than 2 months | B29: 5 | C29: 0.04504504505 | D29: 10.88571429
A31: Housing Developments - Major | B31: 2 | D31: 7.071428571
A33: Housing Developments - Local | B33: 22 | D33: 12.88961039
A34: Local: less than 2 months | B34: 15 | C34: 0.6818181818 | D34: 6.561904762
A35: Local: more than 2 months | B35: 7 | C35: 0.3181818182 | D35: 26.44897959
A37: Business & Industry - Major | B37: 0 | D37: -
A39: Business & Industry - Local | B39: 11 | D39: 7.298701299
A40: Local: less than 2 months | B40: 9 | C40: 0.8181818182 | D40: 6.666666667
A41: Local: more than 2 months | B41: 2 | C41: 0.1818181818 | D41: 10.14285714
A43: Other developments - Major | B43: 0 | D43: -
A45: Other developments - Local | B45: 34 | D45: 8.260504202
A46: Local: less than 2 months | B46: 26 | C46: 0.7647058824 | D46: 6.351648352
A47: Local: more than 2 months | B47: 8 | C47: 0.2352941176 | D47: 14.46428571
A49: EIA Developments | B49: 0 | D49: -
A50: Other Consents | B50: 64 | D50: 6.0625
A52: Decision Making: Applications subject to
A53: Planning/Legal Agreements | B53: 1 | D53: 14.28571429
A54: Local Reviews | B54: 3 | D54: 5.523809524
A56: Decision Making: Local Reviews and Appeals
B58: Total number of decisions | C58: Original decision upheld (%)
A59: Local Reviews | B59: 3 | C59: 0.6666666667
A60: Appeals to Scottish Ministers2 | B60: 1 | C60: 1
A62: Enforcement Activity
B64: Number
A65: Cases Taken Up | B65: 22
A66: Notices Served | B66: 0
A67: Reports to Procurator Fiscal | B67: 1
A68: Prosecutions | B68: 0
A69: Number of breaches resolved | B69: 9
A70: Approved and Delegated
A72: Percentage Approved | B72: 0.96484375
A73: Percentage Delegated | B73: 0.9340659341
A75: 1. For a full description of the categories in this analysis please see NOTES page.
A76: 2. Cases where the decision was recalled and made by Ministers are not included in these figures.
A77: 3. Time has been removed from the decision time for 2 applications where delays were outwith the control of the local authority.

Sheet Orkney
A1: Planning Authority Performance Statistics1,3 | D1: Orkney Islands
D2: 2018/19 Q1
D3: All Applications excluding Legacy Cases | F3: Back to contents
A5: Processing Agreements | B5: Total Number of Decisions | C5: % Within Agreed Timescales
A6: TOTAL | B6: 0 | C6: -
A7: Major Applications | B7: 0 | C7: -
A8: Local Applications | B8: 0 | C8: -
A9: EIA Applications | B9: 0 | C9: -
A10: Other Applications | B10: 0 | C10: -
A11: Applications with processing agreements are not included in the following figures.
B12: Total Number of Decisions | C12: Proportion of Decisions | D12: Average Time (Weeks)
A13: All Major Developments | B13: 0 | D13: -
A14: Without Legal Agreement | B14: 0 | C14: - | D14: -
A15: With Legal Agreement | B15: 0 | C15: - | D15: -
A17: All Local Developments | B17: 75 | D17: 7.742857143
A18: Without Legal Agreement | B18: 75 | C18: 1 | D18: 7.742857143
A19: With Legal Agreement | B19: 0 | C19: 0 | D19: -
A20: Local: less than 2 months | B20: 55 | C20: 0.7333333333 | D20: 6.47012987
A21: Local: more than 2 months | B21: 20 | C21: 0.2666666667 | D21: 11.24285714
A23: All Local developments (non-householder) | B23: 60 | D23: 8.004761905
A24: Local: less than 2 months | B24: 43 | C24: 0.7166666667 | D24: 6.664451827
A25: Local: more than 2 months | B25: 17 | C25: 0.2833333333 | D25: 11.39495798
A27: Householder developments | B27: 15 | D27: 6.695238095
A28: Local: less than 2 months | B28: 12 | C28: 0.8 | D28: 5.773809524
A29: Local: more than 2 months | B29: 3 | C29: 0.2 | D29: 10.38095238
A31: Housing Developments - Major | B31: 0 | D31: -
A33: Housing Developments - Local | B33: 36 | D33: 8.115079365
A34: Local: less than 2 months | B34: 25 | C34: 0.6944444444 | D34: 6.977142857
A35: Local: more than 2 months | B35: 11 | C35: 0.3055555556 | D35: 10.7012987
A37: Business & Industry - Major | B37: 0 | D37: -
A39: Business & Industry - Local | B39: 12 | D39: 7.476190476
A40: Local: less than 2 months | B40: 9 | C40: 0.75 | D40: 6.46031746
A41: Local: more than 2 months | B41: 3 | C41: 0.25 | D41: 10.52380952
A43: Other developments - Major | B43: 0 | D43: -
A45: Other developments - Local | B45: 8 | D45: 6.339285714
A46: Local: less than 2 months | B46: 7 | C46: 0.875 | D46: 6
A47: Local: more than 2 months | B47: 1 | C47: 0.125 | D47: 8.714285714
A49: EIA Developments | B49: 0 | D49: -
A50: Other Consents | B50: 25 | D50: 6.097142857
A52: Decision Making: Applications subject to
A53: Planning/Legal Agreements | B53: 0 | D53: -
A54: Local Reviews | B54: 1 | D54: 6
A56: Decision Making: Local Reviews and Appeals
B58: Total number of decisions | C58: Original decision upheld (%)
A59: Local Reviews | B59: 1 | C59: 1
A60: Appeals to Scottish Ministers2 | B60: 1 | C60: 0
A62: Enforcement Activity
B64: Number
A65: Cases Taken Up | B65: 3
A66: Notices Served | B66: 3
A67: Reports to Procurator Fiscal | B67: 0
A68: Prosecutions | B68: 0
A69: Number of breaches resolved | B69: 16
A70: Approved and Delegated
A72: Percentage Approved | B72: 0.9784946237
A73: Percentage Delegated | B73: 0.97
A75: 1. For a full description of the categories in this analysis please see NOTES page.
A76: 2. Cases where the decision was recalled and made by Ministers are not included in these figures.
A77: 3. Time has been removed from the decision time for 8 applications where delays were outwith the control of the local authority.

Sheet Perth and Kinross
A1: Planning Authority Performance Statistics1,3 | D1: Perth and Kinross
D2: 2018/19 Q1
D3: All Applications excluding Legacy Cases | F3: Back to contents
A5: Processing Agreements | B5: Total Number of Decisions | C5: % Within Agreed Timescales
A6: TOTAL | B6: 3 | C6: 1
A7: Major Applications | B7: 2 | C7: 1
A8: Local Applications | B8: 1 | C8: 1
A9: EIA Applications | B9: 0 | C9: -
A10: Other Applications | B10: 0 | C10: -
A11: Applications with processing agreements are not included in the following figures.
B12: Total Number of Decisions | C12: Proportion of Decisions | D12: Average Time (Weeks)
A13: All Major Developments | B13: 2 | D13: 13.21428571
A14: Without Legal Agreement | B14: 2 | C14: 1 | D14: 13.21428571
A15: With Legal Agreement | B15: 0 | C15: 0 | D15: -
A17: All Local Developments | B17: 341 | D17: 7.886887306
A18: Without Legal Agreement | B18: 338 | C18: 0.991202346 | D18: 7.838123415
A19: With Legal Agreement | B19: 3 | C19: 0.008797653959 | D19: 13.38095238
A20: Local: less than 2 months | B20: 286 | C20: 0.8387096774 | D20: 6.21978022
A21: Local: more than 2 months | B21: 55 | C21: 0.1612903226 | D21: 16.55584416
A23: All Local developments (non-householder) | B23: 208 | D23: 8.653846154
A24: Local: less than 2 months | B24: 163 | C24: 0.7836538462 | D24: 6.04820333
A25: Local: more than 2 months | B25: 45 | C25: 0.2163461538 | D25: 18.09206349
A27: Householder developments | B27: 133 | D27: 6.687432868
A28: Local: less than 2 months | B28: 123 | C28: 0.9248120301 | D28: 6.447154472
A29: Local: more than 2 months | B29: 10 | C29: 0.07518796992 | D29: 9.642857143
A31: Housing Developments - Major | B31: 1 | D31: 11.85714286
A33: Housing Developments - Local | B33: 90 | D33: 9.374603175
A34: Local: less than 2 months | B34: 69 | C34: 0.7666666667 | D34: 5.803312629
A35: Local: more than 2 months | B35: 21 | C35: 0.2333333333 | D35: 21.10884354
A37: Business & Industry - Major | B37: 1 | D37: 14.57142857
A39: Business & Industry - Local | B39: 47 | D39: 7.328267477
A40: Local: less than 2 months | B40: 40 | C40: 0.8510638298 | D40: 6.275
A41: Local: more than 2 months | B41: 7 | C41: 0.1489361702 | D41: 13.34693878
A43: Other developments - Major | B43: 0 | D43: -
A45: Other developments - Local | B45: 53 | D45: 7.84097035
A46: Local: less than 2 months | B46: 42 | C46: 0.7924528302 | D46: 6.139455782
A47: Local: more than 2 months | B47: 11 | C47: 0.2075471698 | D47: 14.33766234
A49: EIA Developments | B49: 0 | D49: -
A50: Other Consents | B50: 82 | D50: 6.235191638
A52: Decision Making: Applications subject to
A53: Planning/Legal Agreements | B53: 3 | D53: 13.38095238
A54: Local Reviews | B54: 21 | D54: 18.0952381
A56: Decision Making: Local Reviews and Appeals
B58: Total number of decisions | C58: Original decision upheld (%)
A59: Local Reviews | B59: 21 | C59: 0.8571428571
A60: Appeals to Scottish Ministers2 | B60: 2 | C60: 0.5
A62: Enforcement Activity
B64: Number
A65: Cases Taken Up | B65: 94
A66: Notices Served | B66: 9
A67: Reports to Procurator Fiscal | B67: 0
A68: Prosecutions | B68: 0
A69: Number of breaches resolved | B69: 41
A70: Approved and Delegated
A72: Percentage Approved | B72: 0.8994974874
A73: Percentage Delegated | B73: 0.964953271
A75: 1. For a full description of the categories in this analysis please see NOTES page.
A76: 2. Cases where the decision was recalled and made by Ministers are not included in these figures.
A77: 3. Time has been removed from the decision time for 28 applications where delays were outwith the control of the local authority.

Sheet Renfrewshire
A1: Planning Authority Performance Statistics1,3 | D1: Renfrewshire
D2: 2018/19 Q1
D3: All Applications excluding Legacy Cases | F3: Back to contents
A5: Processing Agreements | B5: Total Number of Decisions | C5: % Within Agreed Timescales
A6: TOTAL | B6: 0 | C6: -
A7: Major Applications | B7: 0 | C7: -
A8: Local Applications | B8: 0 | C8: -
A9: EIA Applications | B9: 0 | C9: -
A10: Other Applications | B10: 0 | C10: -
A11: Applications with processing agreements are not included in the following figures.
B12: Total Number of Decisions | C12: Proportion of Decisions | D12: Average Time (Weeks)
A13: All Major Developments | B13: 0 | D13: -
A14: Without Legal Agreement | B14: 0 | C14: - | D14: -
A15: With Legal Agreement | B15: 0 | C15: - | D15: -
A17: All Local Developments | B17: 185 | D17: 8.938223938
A18: Without Legal Agreement | B18: 185 | C18: 1 | D18: 8.938223938
A19: With Legal Agreement | B19: 0 | C19: 0 | D19: -
A20: Local: less than 2 months | B20: 130 | C20: 0.7027027027 | D20: 6.996703297
A21: Local: more than 2 months | B21: 55 | C21: 0.2972972973 | D21: 13.52727273
A23: All Local developments (non-householder) | B23: 76 | D23: 10.97556391
A24: Local: less than 2 months | B24: 45 | C24: 0.5921052632 | D24: 7.196825397
A25: Local: more than 2 months | B25: 31 | C25: 0.4078947368 | D25: 16.46082949
A27: Householder developments | B27: 109 | D27: 7.517693316
A28: Local: less than 2 months | B28: 85 | C28: 0.7798165138 | D28: 6.890756303
A29: Local: more than 2 months | B29: 24 | C29: 0.2201834862 | D29: 9.738095238
A31: Housing Developments - Major | B31: 0 | D31: -
A33: Housing Developments - Local | B33: 19 | D33: 9.947368421
A34: Local: less than 2 months | B34: 9 | C34: 0.4736842105 | D34: 7.571428571
A35: Local: more than 2 months | B35: 10 | C35: 0.5263157895 | D35: 12.08571429
A37: Business & Industry - Major | B37: 0 | D37: -
A39: Business & Industry - Local | B39: 3 | D39: 8.333333333
A40: Local: less than 2 months | B40: 2 | C40: 0.6666666667 | D40: 8.142857143
A41: Local: more than 2 months | B41: 1 | C41: 0.3333333333 | D41: 8.714285714
A43: Other developments - Major | B43: 0 | D43: -
A45: Other developments - Local | B45: 51 | D45: 9.254901961
A46: Local: less than 2 months | B46: 34 | C46: 0.6666666667 | D46: 7.042016807
A47: Local: more than 2 months | B47: 17 | C47: 0.3333333333 | D47: 13.68067227
A49: EIA Developments | B49: 0 | D49: -
A50: Other Consents | B50: 51 | D50: 7.633053221
A52: Decision Making: Applications subject to
A53: Planning/Legal Agreements | B53: 0 | D53: -
A54: Local Reviews | B54: 2 | D54: 10.85714286
A56: Decision Making: Local Reviews and Appeals
B58: Total number of decisions | C58: Original decision upheld (%)
A59: Local Reviews | B59: 2 | C59: 0.5
A60: Appeals to Scottish Ministers2 | B60: 0
A62: Enforcement Activity
B64: Number
A65: Cases Taken Up | B65: 0
A66: Notices Served | B66: 0
A67: Reports to Procurator Fiscal | B67: 0
A68: Prosecutions | B68: 0
A69: Number of breaches resolved | B69: 0
A70: Approved and Delegated
A72: Percentage Approved | B72: 0.9726027397
A73: Percentage Delegated | B73: 0.9872881356
A75: 1. For a full description of the categories in this analysis please see NOTES page.
A76: 2. Cases where the decision was recalled and made by Ministers are not included in these figures.
A77: 3. Time has been removed from the decision time for 25 applications where delays were outwith the control of the local authority.

Sheet Scottish Borders
A1: Planning Authority Performance Statistics1,3 | D1: Scottish Borders
D2: 2018/19 Q1
D3: All Applications excluding Legacy Cases | F3: Back to contents
A5: Processing Agreements | B5: Total Number of Decisions | C5: % Within Agreed Timescales
A6: TOTAL | B6: 114 | C6: 0.8070175439
A7: Major Applications | B7: 1 | C7: 1
A8: Local Applications | B8: 94 | C8: 0.7978723404
A9: EIA Applications | B9: 0 | C9: -
A10: Other Applications | B10: 19 | C10: 0.8421052632
A11: Applications with processing agreements are not included in the following figures.
B12: Total Number of Decisions | C12: Proportion of Decisions | D12: Average Time (Weeks)
A13: All Major Developments | B13: 0 | D13: -
A14: Without Legal Agreement | B14: 0 | C14: - | D14: -
A15: With Legal Agreement | B15: 0 | C15: - | D15: -
A17: All Local Developments | B17: 161 | D17: 7.304347826
A18: Without Legal Agreement | B18: 160 | C18: 0.9937888199 | D18: 7.2125
A19: With Legal Agreement | B19: 1 | C19: 0.006211180124 | D19: 22
A20: Local: less than 2 months | B20: 138 | C20: 0.8571428571 | D20: 6.138716356
A21: Local: more than 2 months | B21: 23 | C21: 0.1428571429 | D21: 14.29813665
A23: All Local developments (non-householder) | B23: 73 | D23: 8.493150685
A24: Local: less than 2 months | B24: 56 | C24: 0.7671232877 | D24: 6.293367347
A25: Local: more than 2 months | B25: 17 | C25: 0.2328767123 | D25: 15.7394958
A27: Householder developments | B27: 88 | D27: 6.318181818
A28: Local: less than 2 months | B28: 82 | C28: 0.9318181818 | D28: 6.033101045
A29: Local: more than 2 months | B29: 6 | C29: 0.06818181818 | D29: 10.21428571
A31: Housing Developments - Major | B31: 0 | D31: -
A33: Housing Developments - Local | B33: 9 | D33: 9.746031746
A34: Local: less than 2 months | B34: 5 | C34: 0.5555555556 | D34: 6.714285714
A35: Local: more than 2 months | B35: 4 | C35: 0.4444444444 | D35: 13.53571429
A37: Business & Industry - Major | B37: 0 | D37: -
A39: Business & Industry - Local | B39: 12 | D39: 6.404761905
A40: Local: less than 2 months | B40: 10 | C40: 0.8333333333 | D40: 5.9
A41: Local: more than 2 months | B41: 2 | C41: 0.1666666667 | D41: 8.928571429
A43: Other developments - Major | B43: 0 | D43: -
A45: Other developments - Local | B45: 49 | D45: 6.976676385
A46: Local: less than 2 months | B46: 39 | C46: 0.7959183673 | D46: 6.388278388
A47: Local: more than 2 months | B47: 10 | C47: 0.2040816327 | D47: 9.271428571
A49: EIA Developments | B49: 0 | D49: -
A50: Other Consents | B50: 50 | D50: 6.582857143
A52: Decision Making: Applications subject to
A53: Planning/Legal Agreements | B53: 1 | D53: 22
A54: Local Reviews | B54: 9 | D54: 8
A56: Decision Making: Local Reviews and Appeals
B58: Total number of decisions | C58: Original decision upheld (%)
A59: Local Reviews | B59: 9 | C59: 0.4444444444
A60: Appeals to Scottish Ministers2 | B60: 3 | C60: 0.333
A62: Enforcement Activity
B64: Number
A65: Cases Taken Up | B65: 54
A66: Notices Served | B66: 2
A67: Reports to Procurator Fiscal | B67: 0
A68: Prosecutions | B68: 0
A69: Number of breaches resolved | B69: 51
A70: Approved and Delegated
A72: Percentage Approved | B72: 0.9775641026
A73: Percentage Delegated | B73: 0.9753846154
A75: 1. For a full description of the categories in this analysis please see NOTES page.
A76: 2. Cases where the decision was recalled and made by Ministers are not included in these figures.
A77: 3. Time has not been removed from the decision time for any applications.

Sheet Shetland Islands
A1: Planning Authority Performance Statistics1,3 | D1: Shetland Islands
D2: 2018/19 Q1
D3: All Applications excluding Legacy Cases | F3: Back to contents
A5: Processing Agreements | B5: Total Number of Decisions | C5: % Within Agreed Timescales
A6: TOTAL | B6: 0 | C6: -
A7: Major Applications | B7: 0 | C7: -
A8: Local Applications | B8: 0 | C8: -
A9: EIA Applications | B9: 0 | C9: -
A10: Other Applications | B10: 0 | C10: -
A11: Applications with processing agreements are not included in the following figures.
B12: Total Number of Decisions | C12: Proportion of Decisions | D12: Average Time (Weeks)
A13: All Major Developments | B13: 0 | D13: -
A14: Without Legal Agreement | B14: 0 | C14: - | D14: -
A15: With Legal Agreement | B15: 0 | C15: - | D15: -
A17: All Local Developments | B17: 57 | D17: 7.819548872
A18: Without Legal Agreement | B18: 57 | C18: 1 | D18: 7.819548872
A19: With Legal Agreement | B19: 0 | C19: 0 | D19: -
A20: Local: less than 2 months | B20: 43 | C20: 0.7543859649 | D20: 5.285714286
A21: Local: more than 2 months | B21: 14 | C21: 0.2456140351 | D21: 15.60204082
A23: All Local developments (non-householder) | B23: 43 | D23: 8.511627907
A24: Local: less than 2 months | B24: 31 | C24: 0.7209302326 | D24: 5.497695853
A25: Local: more than 2 months | B25: 12 | C25: 0.2790697674 | D25: 16.29761905
A27: Householder developments | B27: 14 | D27: 5.693877551
A28: Local: less than 2 months | B28: 12 | C28: 0.8571428571 | D28: 4.738095238
A29: Local: more than 2 months | B29: 2 | C29: 0.1428571429 | D29: 11.42857143
A31: Housing Developments - Major | B31: 0 | D31: -
A33: Housing Developments - Local | B33: 14 | D33: 11.45918367
A34: Local: less than 2 months | B34: 8 | C34: 0.5714285714 | D34: 6.303571429
A35: Local: more than 2 months | B35: 6 | C35: 0.4285714286 | D35: 18.33333333
A37: Business & Industry - Major | B37: 0 | D37: -
A39: Business & Industry - Local | B39: 9 | D39: 8.761904762
A40: Local: less than 2 months | B40: 6 | C40: 0.6666666667 | D40: 4.80952381
A41: Local: more than 2 months | B41: 3 | C41: 0.3333333333 | D41: 16.66666667
A43: Other developments - Major | B43: 0 | D43: -
A45: Other developments - Local | B45: 10 | D45: 5.971428571
A46: Local: less than 2 months | B46: 8 | C46: 0.8 | D46: 4.303571429
A47: Local: more than 2 months | B47: 2 | C47: 0.2 | D47: 12.64285714
A49: EIA Developments | B49: 0 | D49: -
A50: Other Consents | B50: 11 | D50: 4.727272727
A52: Decision Making: Applications subject to
A53: Planning/Legal Agreements | B53: 0 | D53: -
A54: Local Reviews | B54: 1 | D54: 10.42857143
A56: Decision Making: Local Reviews and Appeals
B58: Total number of decisions | C58: Original decision upheld (%)
A59: Local Reviews | B59: 1 | C59: 0
A60: Appeals to Scottish Ministers2 | B60: 0
A62: Enforcement Activity
B64: Number
A65: Cases Taken Up | B65: 0
A66: Notices Served | B66: 0
A67: Reports to Procurator Fiscal | B67: 0
A68: Prosecutions | B68: 0
A69: Number of breaches resolved | B69: 15
A70: Approved and Delegated
A72: Percentage Approved | B72: 1
A73: Percentage Delegated | B73: 0.9852941176
A75: 1. For a full description of the categories in this analysis please see NOTES page.
A76: 2. Cases where the decision was recalled and made by Ministers are not included in these figures.
A77: 3. Time has been removed from the decision time for 5 applications where delays were outwith the control of the local authority.

Sheet South Ayrshire
A1: Planning Authority Performance Statistics1,3 | D1: South Ayrshire
D2: 2018/19 Q1
D3: All Applications excluding Legacy Cases | F3: Back to contents
A5: Processing Agreements | B5: Total Number of Decisions | C5: % Within Agreed Timescales
A6: TOTAL | B6: 4 | C6: 1
A7: Major Applications | B7: 1 | C7: 1
A8: Local Applications | B8: 3 | C8: 1
A9: EIA Applications | B9: 0 | C9: -
A10: Other Applications | B10: 0 | C10: -
A11: Applications with processing agreements are not included in the following figures.
B12: Total Number of Decisions | C12: Proportion of Decisions | D12: Average Time (Weeks)
A13: All Major Developments | B13: 1 | D13: 5.142857143
A14: Without Legal Agreement | B14: 1 | C14: 1 | D14: 5.142857143
A15: With Legal Agreement | B15: 0 | C15: 0 | D15: -
A17: All Local Developments | B17: 164 | D17: 6.655052265
A18: Without Legal Agreement | B18: 164 | C18: 1 | D18: 6.655052265
A19: With Legal Agreement | B19: 0 | C19: 0 | D19: -
A20: Local: less than 2 months | B20: 154 | C20: 0.9390243902 | D20: 6.421150278
A21: Local: more than 2 months | B21: 10 | C21: 0.06097560976 | D21: 10.25714286
A23: All Local developments (non-householder) | B23: 66 | D23: 6.251082251
A24: Local: less than 2 months | B24: 62 | C24: 0.9393939394 | D24: 6.023041475
A25: Local: more than 2 months | B25: 4 | C25: 0.06060606061 | D25: 9.785714286
A27: Householder developments | B27: 98 | D27: 6.927113703
A28: Local: less than 2 months | B28: 92 | C28: 0.9387755102 | D28: 6.689440994
A29: Local: more than 2 months | B29: 6 | C29: 0.0612244898 | D29: 10.57142857
A31: Housing Developments - Major | B31: 0 | D31: -
A33: Housing Developments - Local | B33: 13 | D33: 7.120879121
A34: Local: less than 2 months | B34: 12 | C34: 0.9230769231 | D34: 6.857142857
A35: Local: more than 2 months | B35: 1 | C35: 0.07692307692 | D35: 10.28571429
A37: Business & Industry - Major | B37: 1 | D37: 5.142857143
A39: Business & Industry - Local | B39: 10 | D39: 5.285714286
A40: Local: less than 2 months | B40: 10 | C40: 1 | D40: 5.285714286
A41: Local: more than 2 months | B41: 0 | C41: 0 | D41: -
A43: Other developments - Major | B43: 0 | D43: -
A45: Other developments - Local | B45: 42 | D45: 6.231292517
A46: Local: less than 2 months | B46: 39 | C46: 0.9285714286 | D46: 5.970695971
A47: Local: more than 2 months | B47: 3 | C47: 0.07142857143 | D47: 9.619047619
A49: EIA Developments | B49: 0 | D49: -
A50: Other Consents | B50: 64 | D50: 5.037946429
A52: Decision Making: Applications subject to
A53: Planning/Legal Agreements | B53: 0 | D53: -
A54: Local Reviews | B54: 8 | D54: 19.28571429
A56: Decision Making: Local Reviews and Appeals
B58: Total number of decisions | C58: Original decision upheld (%)
A59: Local Reviews | B59: 8 | C59: 0.5
A60: Appeals to Scottish Ministers2 | B60: 2 | C60: 1
A62: Enforcement Activity
B64: Number
A65: Cases Taken Up | B65: 74
A66: Notices Served | B66: 5
A67: Reports to Procurator Fiscal | B67: 0
A68: Prosecutions | B68: 0
A69: Number of breaches resolved | B69: 72
A70: Approved and Delegated
A72: Percentage Approved | B72: 0.8888888889
A73: Percentage Delegated | B73: 0.9785407725
A75: 1. For a full description of the categories in this analysis please see NOTES page.
A76: 2. Cases where the decision was recalled and made by Ministers are not included in these figures.
A77: 3. Time has not been removed from the decision time for any applications.

Sheet South Lanarkshire
A1: Planning Authority Performance Statistics1,3 | D1: South Lanarkshire
D2: 2018/19 Q1
D3: All Applications excluding Legacy Cases | F3: Back to contents
A5: Processing Agreements | B5: Total Number of Decisions | C5: % Within Agreed Timescales
A6: TOTAL | B6: 2 | C6: 0.5
A7: Major Applications | B7: 1 | C7: 0
A8: Local Applications | B8: 1 | C8: 1
A9: EIA Applications | B9: 0 | C9: -
A10: Other Applications | B10: 0 | C10: -
A11: Applications with processing agreements are not included in the following figures.
B12: Total Number of Decisions | C12: Proportion of Decisions | D12: Average Time (Weeks)
A13: All Major Developments | B13: 4 | D13: 26.32142857
A14: Without Legal Agreement | B14: 3 | C14: 0.75 | D14: 26.42857143
A15: With Legal Agreement | B15: 1 | C15: 0.25 | D15: 26
A17: All Local Developments | B17: 374 | D17: 10.57868602
A18: Without Legal Agreement | B18: 374 | C18: 1 | D18: 10.57868602
A19: With Legal Agreement | B19: 0 | C19: 0 | D19: -
A20: Local: less than 2 months | B20: 181 | C20: 0.4839572193 | D20: 6.235990529
A21: Local: more than 2 months | B21: 193 | C21: 0.5160427807 | D21: 14.65136936
A23: All Local developments (non-householder) | B23: 141 | D23: 14.72441743
A24: Local: less than 2 months | B24: 33 | C24: 0.2340425532 | D24: 6.774891775
A25: Local: more than 2 months | B25: 108 | C25: 0.7659574468 | D25: 17.15343915
A27: Householder developments | B27: 233 | D27: 8.069895769
A28: Local: less than 2 months | B28: 148 | C28: 0.635193133 | D28: 6.115830116
A29: Local: more than 2 months | B29: 85 | C29: 0.364806867 | D29: 11.47226891
A31: Housing Developments - Major | B31: 1 | D31: 16
A33: Housing Developments - Local | B33: 67 | D33: 16.59914712
A34: Local: less than 2 months | B34: 15 | C34: 0.223880597 | D34: 7.142857143
A35: Local: more than 2 months | B35: 52 | C35: 0.776119403 | D35: 19.32692308
A37: Business & Industry - Major | B37: 1 | D37: 25.85714286
A39: Business & Industry - Local | B39: 13 | D39: 15.65934066
A40: Local: less than 2 months | B40: 4 | C40: 0.3076923077 | D40: 5.892857143
A41: Local: more than 2 months | B41: 9 | C41: 0.6923076923 | D41: 20
A43: Other developments - Major | B43: 1 | D43: 37.42857143
A45: Other developments - Local | B45: 54 | D45: 12.64021164
A46: Local: less than 2 months | B46: 12 | C46: 0.2222222222 | D46: 6.476190476
A47: Local: more than 2 months | B47: 42 | C47: 0.7777777778 | D47: 14.40136054
A49: EIA Developments | B49: 0 | D49: -
A50: Other Consents | B50: 73 | D50: 9.11741683
A52: Decision Making: Applications subject to
A53: Planning/Legal Agreements | B53: 1 | D53: 26
A54: Local Reviews | B54: 0 | D54: -
A56: Decision Making: Local Reviews and Appeals
B58: Total number of decisions | C58: Original decision upheld (%)
A59: Local Reviews | B59: 0 | C59: -
A60: Appeals to Scottish Ministers2 | B60: 0
A62: Enforcement Activity
B64: Number
A65: Cases Taken Up | B65: 23
A66: Notices Served | B66: 4
A67: Reports to Procurator Fiscal | B67: 0
A68: Prosecutions | B68: 0
A69: Number of breaches resolved | B69: 11
A70: Approved and Delegated
A72: Percentage Approved | B72: 0.993006993
A73: Percentage Delegated | B73: 0.9381898455
A75: 1. For a full description of the categories in this analysis please see NOTES page.
A76: 2. Cases where the decision was recalled and made by Ministers are not included in these figures.
A77: 3. Time has been removed from the decision time for 5 applications where delays were outwith the control of the local authority.

Sheet Stirling
A1: Planning Authority Performance Statistics1,3 | D1: Stirling
D2: 2018/19 Q1
D3: All Applications excluding Legacy Cases | F3: Back to contents
A5: Processing Agreements | B5: Total Number of Decisions | C5: % Within Agreed Timescales
A6: TOTAL | B6: 0 | C6: -
A7: Major Applications | B7: 0 | C7: -
A8: Local Applications | B8: 0 | C8: -
A9: EIA Applications | B9: 0 | C9: -
A10: Other Applications | B10: 0 | C10: -
A11: Applications with processing agreements are not included in the following figures.
B12: Total Number of Decisions | C12: Proportion of Decisions | D12: Average Time (Weeks)
A13: All Major Developments | B13: 1 | D13: 35.85714286
A14: Without Legal Agreement | B14: 1 | C14: 1 | D14: 35.85714286
A15: With Legal Agreement | B15: 0 | C15: 0 | D15: -
A17: All Local Developments | B17: 149 | D17: 8.838926174
A18: Without Legal Agreement | B18: 149 | C18: 1 | D18: 8.838926174
A19: With Legal Agreement | B19: 0 | C19: 0 | D19: -
A20: Local: less than 2 months | B20: 79 | C20: 0.5302013423 | D20: 5.50994575
A21: Local: more than 2 months | B21: 70 | C21: 0.4697986577 | D21: 12.59591837
A23: All Local developments (non-householder) | B23: 71 | D23: 10.69215292
A24: Local: less than 2 months | B24: 23 | C24: 0.323943662 | D24: 5.546583851
A25: Local: more than 2 months | B25: 48 | C25: 0.676056338 | D25: 13.1577381
A27: Householder developments | B27: 78 | D27: 7.152014652
A28: Local: less than 2 months | B28: 56 | C28: 0.7179487179 | D28: 5.494897959
A29: Local: more than 2 months | B29: 22 | C29: 0.2820512821 | D29: 11.37012987
A31: Housing Developments - Major | B31: 0 | D31: -
A33: Housing Developments - Local | B33: 27 | D33: 12.44444444
A34: Local: less than 2 months | B34: 7 | C34: 0.2592592593 | D34: 6.224489796
A35: Local: more than 2 months | B35: 20 | C35: 0.7407407407 | D35: 14.62142857
A37: Business & Industry - Major | B37: 0 | D37: -
A39: Business & Industry - Local | B39: 3 | D39: 10.0952381
A40: Local: less than 2 months | B40: 1 | C40: 0.3333333333 | D40: 3.714285714
A41: Local: more than 2 months | B41: 2 | C41: 0.6666666667 | D41: 13.28571429
A43: Other developments - Major | B43: 1 | D43: 35.85714286
A45: Other developments - Local | B45: 33 | D45: 9.354978355
A46: Local: less than 2 months | B46: 14 | C46: 0.4242424242 | D46: 5.214285714
A47: Local: more than 2 months | B47: 19 | C47: 0.5757575758 | D47: 12.40601504
A49: EIA Developments | B49: 0 | D49: -
A50: Other Consents | B50: 36 | D50: 10.01984127
A52: Decision Making: Applications subject to
A53: Planning/Legal Agreements | B53: 0 | D53: -
A54: Local Reviews | B54: 2 | D54: 24.07142857
A56: Decision Making: Local Reviews and Appeals
B58: Total number of decisions | C58: Original decision upheld (%)
A59: Local Reviews | B59: 2 | C59: 1
A60: Appeals to Scottish Ministers2 | B60: 0 | C60: -
A62: Enforcement Activity
B64: Number
A65: Cases Taken Up | B65: 9
A66: Notices Served | B66: 3
A67: Reports to Procurator Fiscal | B67: 0
A68: Prosecutions | B68: 0
A69: Number of breaches resolved | B69: 23
A70: Approved and Delegated
A72: Percentage Approved | B72: 0.9505494505
A73: Percentage Delegated | B73: 0.9623655914
A75: 1. For a full description of the categories in this analysis please see NOTES page.
A76: 2. Cases where the decision was recalled and made by Ministers are not included in these figures.
A77: 3. Time has been removed from the decision time for 0 applications where delays were outwith the control of the local authority.

Sheet West Dunbartonshire
A1: Planning Authority Performance Statistics1,3 | D1: West Dunbartonshire
D2: 2018/19 Q1
D3: All Applications excluding Legacy Cases | F3: Back to contents
A5: Processing Agreements | B5: Total Number of Decisions | C5: % Within Agreed Timescales
A6: TOTAL | B6: 1 | C6: 0
A7: Major Applications | B7: 0 | C7: -
A8: Local Applications | B8: 1 | C8: 0
A9: EIA Applications | B9: 0 | C9: -
A10: Other Applications | B10: 0 | C10: -
A11: Applications with processing agreements are not included in the following figures.
B12: Total Number of Decisions | C12: Proportion of Decisions | D12: Average Time (Weeks)
A13: All Major Developments | B13: 1 | D13: 29
A14: Without Legal Agreement | B14: 1 | C14: 1 | D14: 29
A15: With Legal Agreement | B15: 0 | C15: 0 | D15: -
A17: All Local Developments | B17: 57 | D17: 9.473684211
A18: Without Legal Agreement | B18: 57 | C18: 1 | D18: 9.473684211
A19: With Legal Agreement | B19: 0 | C19: 0 | D19: -
A20: Local: less than 2 months | B20: 35 | C20: 0.6140350877 | D20: 6.444897959
A21: Local: more than 2 months | B21: 22 | C21: 0.3859649123 | D21: 14.29220779
A23: All Local developments (non-householder) | B23: 18 | D23: 13.66666667
A24: Local: less than 2 months | B24: 4 | C24: 0.2222222222 | D24: 5.214285714
A25: Local: more than 2 months | B25: 14 | C25: 0.7777777778 | D25: 16.08163265
A27: Householder developments | B27: 39 | D27: 7.538461538
A28: Local: less than 2 months | B28: 31 | C28: 0.7948717949 | D28: 6.603686636
A29: Local: more than 2 months | B29: 8 | C29: 0.2051282051 | D29: 11.16071429
A31: Housing Developments - Major | B31: 0 | D31: -
A33: Housing Developments - Local | B33: 2 | D33: 13.21428571
A34: Local: less than 2 months | B34: 0 | C34: 0 | D34: -
A35: Local: more than 2 months | B35: 2 | C35: 1 | D35: 13.21428571
A37: Business & Industry - Major | B37: 0 | D37: -
A39: Business & Industry - Local | B39: 4 | D39: 11.14285714
A40: Local: less than 2 months | B40: 2 | C40: 0.5 | D40: 5.214285714
A41: Local: more than 2 months | B41: 2 | C41: 0.5 | D41: 17.07142857
A43: Other developments - Major | B43: 1 | D43: 29
A45: Other developments - Local | B45: 12 | D45: 14.58333333
A46: Local: less than 2 months | B46: 2 | C46: 0.1666666667 | D46: 5.214285714
A47: Local: more than 2 months | B47: 10 | C47: 0.8333333333 | D47: 16.45714286
A49: EIA Developments | B49: 0 | D49: -
A50: Other Consents | B50: 10 | D50: 10.97142857
A52: Decision Making: Applications subject to
A53: Planning/Legal Agreements | B53: 0 | D53: -
A54: Local Reviews | B54: 0 | D54: -
A56: Decision Making: Local Reviews and Appeals
B58: Total number of decisions | C58: Original decision upheld (%)
A59: Local Reviews | B59: 0 | C59: -
A60: Appeals to Scottish Ministers2 | B60: 0
A62: Enforcement Activity
B64: Number
A65: Cases Taken Up | B65: 23
A66: Notices Served | B66: 0
A67: Reports to Procurator Fiscal | B67: 0
A68: Prosecutions | B68: 0
A69: Number of breaches resolved | B69: 16
A70: Approved and Delegated
A72: Percentage Approved | B72: 1
A73: Percentage Delegated | B73: 0.8985507246
A75: 1. For a full description of the categories in this analysis please see NOTES page.
A76: 2. Cases where the decision was recalled and made by Ministers are not included in these figures.
A77: 3. Time has been removed from the decision time for 17 applications where delays were outwith the control of the local authority.

Sheet West Lothian
A1: Planning Authority Performance Statistics1,3 | D1: West Lothian
D2: 2018/19 Q1
D3: All Applications excluding Legacy Cases | F3: Back to contents
A5: Processing Agreements | B5: Total Number of Decisions | C5: % Within Agreed Timescales
A6: TOTAL | B6: 7 | C6: 1
A7: Major Applications | B7: 0 | C7: -
A8: Local Applications | B8: 7 | C8: 1
A9: EIA Applications | B9: 0 | C9: -
A10: Other Applications | B10: 0 | C10: -
A11: Applications with processing agreements are not included in the following figures.
B12: Total Number of Decisions | C12: Proportion of Decisions | D12: Average Time (Weeks)
A13: All Major Developments | B13: 2 | D13: 140.7142857
A14: Without Legal Agreement | B14: 1 | C14: 0.5 | D14: 47.28571429
A15: With Legal Agreement | B15: 1 | C15: 0.5 | D15: 234.1428571
A17: All Local Developments | B17: 133 | D17: 9.900107411
A18: Without Legal Agreement | B18: 126 | C18: 0.9473684211 | D18: 8.366213152
A19: With Legal Agreement | B19: 7 | C19: 0.05263157895 | D19: 37.51020408
A20: Local: less than 2 months | B20: 108 | C20: 0.8120300752 | D20: 6.693121693
A21: Local: more than 2 months | B21: 25 | C21: 0.1879699248 | D21: 23.75428571
A23: All Local developments (non-householder) | B23: 59 | D23: 13.15496368
A24: Local: less than 2 months | B24: 39 | C24: 0.6610169492 | D24: 6.153846154
A25: Local: more than 2 months | B25: 20 | C25: 0.3389830508 | D25: 26.80714286
A27: Householder developments | B27: 74 | D27: 7.305019305
A28: Local: less than 2 months | B28: 69 | C28: 0.9324324324 | D28: 6.997929607
A29: Local: more than 2 months | B29: 5 | C29: 0.06756756757 | D29: 11.54285714
A31: Housing Developments - Major | B31: 2 | D31: 140.7142857
A33: Housing Developments - Local | B33: 16 | D33: 20.45535714
A34: Local: less than 2 months | B34: 8 | C34: 0.5 | D34: 6.160714286
A35: Local: more than 2 months | B35: 8 | C35: 0.5 | D35: 34.75
A37: Business & Industry - Major | B37: 0 | D37: -
A39: Business & Industry - Local | B39: 9 | D39: 12.85714286
A40: Local: less than 2 months | B40: 7 | C40: 0.7777777778 | D40: 6.306122449
A41: Local: more than 2 months | B41: 2 | C41: 0.2222222222 | D41: 35.78571429
A43: Other developments - Major | B43: 0 | D43: -
A45: Other developments - Local | B45: 31 | D45: 8.516129032
A46: Local: less than 2 months | B46: 23 | C46: 0.7419354839 | D46: 6
A47: Local: more than 2 months | B47: 8 | C47: 0.2580645161 | D47: 15.75
A49: EIA Developments | B49: 0 | D49: -
A50: Other Consents | B50: 37 | D50: 5.540540541
A52: Decision Making: Applications subject to
A53: Planning/Legal Agreements | B53: 8 | D53: 62.08928571
A54: Local Reviews | B54: 2 | D54: 4.214285714
A56: Decision Making: Local Reviews and Appeals
B58: Total number of decisions | C58: Original decision upheld (%)
A59: Local Reviews | B59: 2 | C59: 1
A60: Appeals to Scottish Ministers2 | B60: 4 | C60: 0.75
A62: Enforcement Activity
B64: Number
A65: Cases Taken Up | B65: 107
A66: Notices Served | B66: 11
A67: Reports to Procurator Fiscal | B67: 0
A68: Prosecutions | B68: 0
A69: Number of breaches resolved | B69: 116
A70: Approved and Delegated
A72: Percentage Approved | B72: 0.9142857143
A73: Percentage Delegated | B73: 0.9162011173
A75: 1. For a full description of the categories in this analysis please see NOTES page.
A76: 2. Cases where the decision was recalled and made by Ministers are not included in these figures.
A77: 3. Time has been removed from the decision time for 8 applications where delays were outwith the control of the local authority.
